{"text_format":"3","workbook":"xlsx","n_sheets":1,"sheets":["Kalender Tahunan"],"not_rendered":{"images":4,"defined_names":14},"read":"whole","date_system":"1900"}

{"sheet":"Kalender Tahunan","index":0,"n_rows":55,"n_cols":21,"rows_kept":55,"merged":[[0,2,0,5]]}
[null,null,{"$f":"YEAR(TODAY())","v":2019},{"$nulls":17},"TANGGAL PENTING"]
[]
[null,null,"JANUARI",{"$nulls":7},"FEBRUARI",{"$nulls":9},"1 JANUARI"]
[null,null,"S","S","R","K","J","S","M",null,"S","S","R","K","J","S","M",{"$nulls":3},"TAHUN BARU"]
[null,null,{"$f":"IF(DAY(MinJan1)=1,\"\",IF(AND(YEAR(MinJan1+1)=TahunKalender,MONTH(MinJan1+1)=1),MinJan1+1,\"\"))","v":""},{"$f":"IF(DAY(MinJan1)=1,\"\",IF(AND(YEAR(MinJan1+2)=TahunKalender,MONTH(MinJan1+2)=1),MinJan1+2,\"\"))","v":"2019-01-01"},{"$f":"IF(DAY(MinJan1)=1,\"\",IF(AND(YEAR(MinJan1+3)=TahunKalender,MONTH(MinJan1+3)=1),MinJan1+3,\"\"))","v":"2019-01-02"},{"$f":"IF(DAY(MinJan1)=1,\"\",IF(AND(YEAR(MinJan1+4)=TahunKalender,MONTH(MinJan1+4)=1),MinJan1+4,\"\"))","v":"2019-01-03"},{"$f":"IF(DAY(MinJan1)=1,\"\",IF(AND(YEAR(MinJan1+5)=TahunKalender,MONTH(MinJan1+5)=1),MinJan1+5,\"\"))","v":"2019-01-04"},{"$f":"IF(DAY(MinJan1)=1,\"\",IF(AND(YEAR(MinJan1+6)=TahunKalender,MONTH(MinJan1+6)=1),MinJan1+6,\"\"))","v":"2019-01-05"},{"$f":"IF(DAY(MinJan1)=1,IF(AND(YEAR(MinJan1)=TahunKalender,MONTH(MinJan1)=1),MinJan1,\"\"),IF(AND(YEAR(MinJan1+7)=TahunKalender,MONTH(MinJan1+7)=1),MinJan1+7,\"\"))","v":"2019-01-06"},null,{"$f":"IF(DAY(MinFeb1)=1,\"\",IF(AND(YEAR(MinFeb1+1)=TahunKalender,MONTH(MinFeb1+1)=2),MinFeb1+1,\"\"))","v":""},{"$f":"IF(DAY(MinFeb1)=1,\"\",IF(AND(YEAR(MinFeb1+2)=TahunKalender,MONTH(MinFeb1+2)=2),MinFeb1+2,\"\"))","v":""},{"$f":"IF(DAY(MinFeb1)=1,\"\",IF(AND(YEAR(MinFeb1+3)=TahunKalender,MONTH(MinFeb1+3)=2),MinFeb1+3,\"\"))","v":""},{"$f":"IF(DAY(MinFeb1)=1,\"\",IF(AND(YEAR(MinFeb1+4)=TahunKalender,MONTH(MinFeb1+4)=2),MinFeb1+4,\"\"))","v":""},{"$f":"IF(DAY(MinFeb1)=1,\"\",IF(AND(YEAR(MinFeb1+5)=TahunKalender,MONTH(MinFeb1+5)=2),MinFeb1+5,\"\"))","v":"2019-02-01"},{"$f":"IF(DAY(MinFeb1)=1,\"\",IF(AND(YEAR(MinFeb1+6)=TahunKalender,MONTH(MinFeb1+6)=2),MinFeb1+6,\"\"))","v":"2019-02-02"},{"$f":"IF(DAY(MinFeb1)=1,IF(AND(YEAR(MinFeb1)=TahunKalender,MONTH(MinFeb1)=2),MinFeb1,\"\"),IF(AND(YEAR(MinFeb1+7)=TahunKalender,MONTH(MinFeb1+7)=2),MinFeb1+7,\"\"))","v":"2019-02-03"}]
[null,null,{"$f":"IF(DAY(MinJan1)=1,IF(AND(YEAR(MinJan1+1)=TahunKalender,MONTH(MinJan1+1)=1),MinJan1+1,\"\"),IF(AND(YEAR(MinJan1+8)=TahunKalender,MONTH(MinJan1+8)=1),MinJan1+8,\"\"))","v":"2019-01-07"},{"$f":"IF(DAY(MinJan1)=1,IF(AND(YEAR(MinJan1+2)=TahunKalender,MONTH(MinJan1+2)=1),MinJan1+2,\"\"),IF(AND(YEAR(MinJan1+9)=TahunKalender,MONTH(MinJan1+9)=1),MinJan1+9,\"\"))","v":"2019-01-08"},{"$f":"IF(DAY(MinJan1)=1,IF(AND(YEAR(MinJan1+3)=TahunKalender,MONTH(MinJan1+3)=1),MinJan1+3,\"\"),IF(AND(YEAR(MinJan1+10)=TahunKalender,MONTH(MinJan1+10)=1),MinJan1+10,\"\"))","v":"2019-01-09"},{"$f":"IF(DAY(MinJan1)=1,IF(AND(YEAR(MinJan1+4)=TahunKalender,MONTH(MinJan1+4)=1),MinJan1+4,\"\"),IF(AND(YEAR(MinJan1+11)=TahunKalender,MONTH(MinJan1+11)=1),MinJan1+11,\"\"))","v":"2019-01-10"},{"$f":"IF(DAY(MinJan1)=1,IF(AND(YEAR(MinJan1+5)=TahunKalender,MONTH(MinJan1+5)=1),MinJan1+5,\"\"),IF(AND(YEAR(MinJan1+12)=TahunKalender,MONTH(MinJan1+12)=1),MinJan1+12,\"\"))","v":"2019-01-11"},{"$f":"IF(DAY(MinJan1)=1,IF(AND(YEAR(MinJan1+6)=TahunKalender,MONTH(MinJan1+6)=1),MinJan1+6,\"\"),IF(AND(YEAR(MinJan1+13)=TahunKalender,MONTH(MinJan1+13)=1),MinJan1+13,\"\"))","v":"2019-01-12"},{"$f":"IF(DAY(MinJan1)=1,IF(AND(YEAR(MinJan1+7)=TahunKalender,MONTH(MinJan1+7)=1),MinJan1+7,\"\"),IF(AND(YEAR(MinJan1+14)=TahunKalender,MONTH(MinJan1+14)=1),MinJan1+14,\"\"))","v":"2019-01-13"},null,{"$f":"IF(DAY(MinFeb1)=1,IF(AND(YEAR(MinFeb1+1)=TahunKalender,MONTH(MinFeb1+1)=2),MinFeb1+1,\"\"),IF(AND(YEAR(MinFeb1+8)=TahunKalender,MONTH(MinFeb1+8)=2),MinFeb1+8,\"\"))","v":"2019-02-04"},{"$f":"IF(DAY(MinFeb1)=1,IF(AND(YEAR(MinFeb1+2)=TahunKalender,MONTH(MinFeb1+2)=2),MinFeb1+2,\"\"),IF(AND(YEAR(MinFeb1+9)=TahunKalender,MONTH(MinFeb1+9)=2),MinFeb1+9,\"\"))","v":"2019-02-05"},{"$f":"IF(DAY(MinFeb1)=1,IF(AND(YEAR(MinFeb1+3)=TahunKalender,MONTH(MinFeb1+3)=2),MinFeb1+3,\"\"),IF(AND(YEAR(MinFeb1+10)=TahunKalender,MONTH(MinFeb1+10)=2),MinFeb1+10,\"\"))","v":"2019-02-06"},{"$f":"IF(DAY(MinFeb1)=1,IF(AND(YEAR(MinFeb1+4)=TahunKalender,MONTH(MinFeb1+4)=2),MinFeb1+4,\"\"),IF(AND(YEAR(MinFeb1+11)=TahunKalender,MONTH(MinFeb1+11)=2),MinFeb1+11,\"\"))","v":"2019-02-07"},{"$f":"IF(DAY(MinFeb1)=1,IF(AND(YEAR(MinFeb1+5)=TahunKalender,MONTH(MinFeb1+5)=2),MinFeb1+5,\"\"),IF(AND(YEAR(MinFeb1+12)=TahunKalender,MONTH(MinFeb1+12)=2),MinFeb1+12,\"\"))","v":"2019-02-08"},{"$f":"IF(DAY(MinFeb1)=1,IF(AND(YEAR(MinFeb1+6)=TahunKalender,MONTH(MinFeb1+6)=2),MinFeb1+6,\"\"),IF(AND(YEAR(MinFeb1+13)=TahunKalender,MONTH(MinFeb1+13)=2),MinFeb1+13,\"\"))","v":"2019-02-09"},{"$f":"IF(DAY(MinFeb1)=1,IF(AND(YEAR(MinFeb1+7)=TahunKalender,MONTH(MinFeb1+7)=2),MinFeb1+7,\"\"),IF(AND(YEAR(MinFeb1+14)=TahunKalender,MONTH(MinFeb1+14)=2),MinFeb1+14,\"\"))","v":"2019-02-10"},{"$nulls":3},"14 FEBRUARI"]
[null,null,{"$f":"IF(DAY(MinJan1)=1,IF(AND(YEAR(MinJan1+8)=TahunKalender,MONTH(MinJan1+8)=1),MinJan1+8,\"\"),IF(AND(YEAR(MinJan1+15)=TahunKalender,MONTH(MinJan1+15)=1),MinJan1+15,\"\"))","v":"2019-01-14"},{"$f":"IF(DAY(MinJan1)=1,IF(AND(YEAR(MinJan1+9)=TahunKalender,MONTH(MinJan1+9)=1),MinJan1+9,\"\"),IF(AND(YEAR(MinJan1+16)=TahunKalender,MONTH(MinJan1+16)=1),MinJan1+16,\"\"))","v":"2019-01-15"},{"$f":"IF(DAY(MinJan1)=1,IF(AND(YEAR(MinJan1+10)=TahunKalender,MONTH(MinJan1+10)=1),MinJan1+10,\"\"),IF(AND(YEAR(MinJan1+17)=TahunKalender,MONTH(MinJan1+17)=1),MinJan1+17,\"\"))","v":"2019-01-16"},{"$f":"IF(DAY(MinJan1)=1,IF(AND(YEAR(MinJan1+11)=TahunKalender,MONTH(MinJan1+11)=1),MinJan1+11,\"\"),IF(AND(YEAR(MinJan1+18)=TahunKalender,MONTH(MinJan1+18)=1),MinJan1+18,\"\"))","v":"2019-01-17"},{"$f":"IF(DAY(MinJan1)=1,IF(AND(YEAR(MinJan1+12)=TahunKalender,MONTH(MinJan1+12)=1),MinJan1+12,\"\"),IF(AND(YEAR(MinJan1+19)=TahunKalender,MONTH(MinJan1+19)=1),MinJan1+19,\"\"))","v":"2019-01-18"},{"$f":"IF(DAY(MinJan1)=1,IF(AND(YEAR(MinJan1+13)=TahunKalender,MONTH(MinJan1+13)=1),MinJan1+13,\"\"),IF(AND(YEAR(MinJan1+20)=TahunKalender,MONTH(MinJan1+20)=1),MinJan1+20,\"\"))","v":"2019-01-19"},{"$f":"IF(DAY(MinJan1)=1,IF(AND(YEAR(MinJan1+14)=TahunKalender,MONTH(MinJan1+14)=1),MinJan1+14,\"\"),IF(AND(YEAR(MinJan1+21)=TahunKalender,MONTH(MinJan1+21)=1),MinJan1+21,\"\"))","v":"2019-01-20"},null,{"$f":"IF(DAY(MinFeb1)=1,IF(AND(YEAR(MinFeb1+8)=TahunKalender,MONTH(MinFeb1+8)=2),MinFeb1+8,\"\"),IF(AND(YEAR(MinFeb1+15)=TahunKalender,MONTH(MinFeb1+15)=2),MinFeb1+15,\"\"))","v":"2019-02-11"},{"$f":"IF(DAY(MinFeb1)=1,IF(AND(YEAR(MinFeb1+9)=TahunKalender,MONTH(MinFeb1+9)=2),MinFeb1+9,\"\"),IF(AND(YEAR(MinFeb1+16)=TahunKalender,MONTH(MinFeb1+16)=2),MinFeb1+16,\"\"))","v":"2019-02-12"},{"$f":"IF(DAY(MinFeb1)=1,IF(AND(YEAR(MinFeb1+10)=TahunKalender,MONTH(MinFeb1+10)=2),MinFeb1+10,\"\"),IF(AND(YEAR(MinFeb1+17)=TahunKalender,MONTH(MinFeb1+17)=2),MinFeb1+17,\"\"))","v":"2019-02-13"},{"$f":"IF(DAY(MinFeb1)=1,IF(AND(YEAR(MinFeb1+11)=TahunKalender,MONTH(MinFeb1+11)=2),MinFeb1+11,\"\"),IF(AND(YEAR(MinFeb1+18)=TahunKalender,MONTH(MinFeb1+18)=2),MinFeb1+18,\"\"))","v":"2019-02-14"},{"$f":"IF(DAY(MinFeb1)=1,IF(AND(YEAR(MinFeb1+12)=TahunKalender,MONTH(MinFeb1+12)=2),MinFeb1+12,\"\"),IF(AND(YEAR(MinFeb1+19)=TahunKalender,MONTH(MinFeb1+19)=2),MinFeb1+19,\"\"))","v":"2019-02-15"},{"$f":"IF(DAY(MinFeb1)=1,IF(AND(YEAR(MinFeb1+13)=TahunKalender,MONTH(MinFeb1+13)=2),MinFeb1+13,\"\"),IF(AND(YEAR(MinFeb1+20)=TahunKalender,MONTH(MinFeb1+20)=2),MinFeb1+20,\"\"))","v":"2019-02-16"},{"$f":"IF(DAY(MinFeb1)=1,IF(AND(YEAR(MinFeb1+14)=TahunKalender,MONTH(MinFeb1+14)=2),MinFeb1+14,\"\"),IF(AND(YEAR(MinFeb1+21)=TahunKalender,MONTH(MinFeb1+21)=2),MinFeb1+21,\"\"))","v":"2019-02-17"},{"$nulls":3},"HARI VALENTINE"]
[null,null,{"$f":"IF(DAY(MinJan1)=1,IF(AND(YEAR(MinJan1+15)=TahunKalender,MONTH(MinJan1+15)=1),MinJan1+15,\"\"),IF(AND(YEAR(MinJan1+22)=TahunKalender,MONTH(MinJan1+22)=1),MinJan1+22,\"\"))","v":"2019-01-21"},{"$f":"IF(DAY(MinJan1)=1,IF(AND(YEAR(MinJan1+16)=TahunKalender,MONTH(MinJan1+16)=1),MinJan1+16,\"\"),IF(AND(YEAR(MinJan1+23)=TahunKalender,MONTH(MinJan1+23)=1),MinJan1+23,\"\"))","v":"2019-01-22"},{"$f":"IF(DAY(MinJan1)=1,IF(AND(YEAR(MinJan1+17)=TahunKalender,MONTH(MinJan1+17)=1),MinJan1+17,\"\"),IF(AND(YEAR(MinJan1+24)=TahunKalender,MONTH(MinJan1+24)=1),MinJan1+24,\"\"))","v":"2019-01-23"},{"$f":"IF(DAY(MinJan1)=1,IF(AND(YEAR(MinJan1+18)=TahunKalender,MONTH(MinJan1+18)=1),MinJan1+18,\"\"),IF(AND(YEAR(MinJan1+25)=TahunKalender,MONTH(MinJan1+25)=1),MinJan1+25,\"\"))","v":"2019-01-24"},{"$f":"IF(DAY(MinJan1)=1,IF(AND(YEAR(MinJan1+19)=TahunKalender,MONTH(MinJan1+19)=1),MinJan1+19,\"\"),IF(AND(YEAR(MinJan1+26)=TahunKalender,MONTH(MinJan1+26)=1),MinJan1+26,\"\"))","v":"2019-01-25"},{"$f":"IF(DAY(MinJan1)=1,IF(AND(YEAR(MinJan1+20)=TahunKalender,MONTH(MinJan1+20)=1),MinJan1+20,\"\"),IF(AND(YEAR(MinJan1+27)=TahunKalender,MONTH(MinJan1+27)=1),MinJan1+27,\"\"))","v":"2019-01-26"},{"$f":"IF(DAY(MinJan1)=1,IF(AND(YEAR(MinJan1+21)=TahunKalender,MONTH(MinJan1+21)=1),MinJan1+21,\"\"),IF(AND(YEAR(MinJan1+28)=TahunKalender,MONTH(MinJan1+28)=1),MinJan1+28,\"\"))","v":"2019-01-27"},null,{"$f":"IF(DAY(MinFeb1)=1,IF(AND(YEAR(MinFeb1+15)=TahunKalender,MONTH(MinFeb1+15)=2),MinFeb1+15,\"\"),IF(AND(YEAR(MinFeb1+22)=TahunKalender,MONTH(MinFeb1+22)=2),MinFeb1+22,\"\"))","v":"2019-02-18"},{"$f":"IF(DAY(MinFeb1)=1,IF(AND(YEAR(MinFeb1+16)=TahunKalender,MONTH(MinFeb1+16)=2),MinFeb1+16,\"\"),IF(AND(YEAR(MinFeb1+23)=TahunKalender,MONTH(MinFeb1+23)=2),MinFeb1+23,\"\"))","v":"2019-02-19"},{"$f":"IF(DAY(MinFeb1)=1,IF(AND(YEAR(MinFeb1+17)=TahunKalender,MONTH(MinFeb1+17)=2),MinFeb1+17,\"\"),IF(AND(YEAR(MinFeb1+24)=TahunKalender,MONTH(MinFeb1+24)=2),MinFeb1+24,\"\"))","v":"2019-02-20"},{"$f":"IF(DAY(MinFeb1)=1,IF(AND(YEAR(MinFeb1+18)=TahunKalender,MONTH(MinFeb1+18)=2),MinFeb1+18,\"\"),IF(AND(YEAR(MinFeb1+25)=TahunKalender,MONTH(MinFeb1+25)=2),MinFeb1+25,\"\"))","v":"2019-02-21"},{"$f":"IF(DAY(MinFeb1)=1,IF(AND(YEAR(MinFeb1+19)=TahunKalender,MONTH(MinFeb1+19)=2),MinFeb1+19,\"\"),IF(AND(YEAR(MinFeb1+26)=TahunKalender,MONTH(MinFeb1+26)=2),MinFeb1+26,\"\"))","v":"2019-02-22"},{"$f":"IF(DAY(MinFeb1)=1,IF(AND(YEAR(MinFeb1+20)=TahunKalender,MONTH(MinFeb1+20)=2),MinFeb1+20,\"\"),IF(AND(YEAR(MinFeb1+27)=TahunKalender,MONTH(MinFeb1+27)=2),MinFeb1+27,\"\"))","v":"2019-02-23"},{"$f":"IF(DAY(MinFeb1)=1,IF(AND(YEAR(MinFeb1+21)=TahunKalender,MONTH(MinFeb1+21)=2),MinFeb1+21,\"\"),IF(AND(YEAR(MinFeb1+28)=TahunKalender,MONTH(MinFeb1+28)=2),MinFeb1+28,\"\"))","v":"2019-02-24"}]
[null,null,{"$f":"IF(DAY(MinJan1)=1,IF(AND(YEAR(MinJan1+22)=TahunKalender,MONTH(MinJan1+22)=1),MinJan1+22,\"\"),IF(AND(YEAR(MinJan1+29)=TahunKalender,MONTH(MinJan1+29)=1),MinJan1+29,\"\"))","v":"2019-01-28"},{"$f":"IF(DAY(MinJan1)=1,IF(AND(YEAR(MinJan1+23)=TahunKalender,MONTH(MinJan1+23)=1),MinJan1+23,\"\"),IF(AND(YEAR(MinJan1+30)=TahunKalender,MONTH(MinJan1+30)=1),MinJan1+30,\"\"))","v":"2019-01-29"},{"$f":"IF(DAY(MinJan1)=1,IF(AND(YEAR(MinJan1+24)=TahunKalender,MONTH(MinJan1+24)=1),MinJan1+24,\"\"),IF(AND(YEAR(MinJan1+31)=TahunKalender,MONTH(MinJan1+31)=1),MinJan1+31,\"\"))","v":"2019-01-30"},{"$f":"IF(DAY(MinJan1)=1,IF(AND(YEAR(MinJan1+25)=TahunKalender,MONTH(MinJan1+25)=1),MinJan1+25,\"\"),IF(AND(YEAR(MinJan1+32)=TahunKalender,MONTH(MinJan1+32)=1),MinJan1+32,\"\"))","v":"2019-01-31"},{"$f":"IF(DAY(MinJan1)=1,IF(AND(YEAR(MinJan1+26)=TahunKalender,MONTH(MinJan1+26)=1),MinJan1+26,\"\"),IF(AND(YEAR(MinJan1+33)=TahunKalender,MONTH(MinJan1+33)=1),MinJan1+33,\"\"))","v":""},{"$f":"IF(DAY(MinJan1)=1,IF(AND(YEAR(MinJan1+27)=TahunKalender,MONTH(MinJan1+27)=1),MinJan1+27,\"\"),IF(AND(YEAR(MinJan1+34)=TahunKalender,MONTH(MinJan1+34)=1),MinJan1+34,\"\"))","v":""},{"$f":"IF(DAY(MinJan1)=1,IF(AND(YEAR(MinJan1+28)=TahunKalender,MONTH(MinJan1+28)=1),MinJan1+28,\"\"),IF(AND(YEAR(MinJan1+35)=TahunKalender,MONTH(MinJan1+35)=1),MinJan1+35,\"\"))","v":""},null,{"$f":"IF(DAY(MinFeb1)=1,IF(AND(YEAR(MinFeb1+22)=TahunKalender,MONTH(MinFeb1+22)=2),MinFeb1+22,\"\"),IF(AND(YEAR(MinFeb1+29)=TahunKalender,MONTH(MinFeb1+29)=2),MinFeb1+29,\"\"))","v":"2019-02-25"},{"$f":"IF(DAY(MinFeb1)=1,IF(AND(YEAR(MinFeb1+23)=TahunKalender,MONTH(MinFeb1+23)=2),MinFeb1+23,\"\"),IF(AND(YEAR(MinFeb1+30)=TahunKalender,MONTH(MinFeb1+30)=2),MinFeb1+30,\"\"))","v":"2019-02-26"},{"$f":"IF(DAY(MinFeb1)=1,IF(AND(YEAR(MinFeb1+24)=TahunKalender,MONTH(MinFeb1+24)=2),MinFeb1+24,\"\"),IF(AND(YEAR(MinFeb1+31)=TahunKalender,MONTH(MinFeb1+31)=2),MinFeb1+31,\"\"))","v":"2019-02-27"},{"$f":"IF(DAY(MinFeb1)=1,IF(AND(YEAR(MinFeb1+25)=TahunKalender,MONTH(MinFeb1+25)=2),MinFeb1+25,\"\"),IF(AND(YEAR(MinFeb1+32)=TahunKalender,MONTH(MinFeb1+32)=2),MinFeb1+32,\"\"))","v":"2019-02-28"},{"$f":"IF(DAY(MinFeb1)=1,IF(AND(YEAR(MinFeb1+26)=TahunKalender,MONTH(MinFeb1+26)=2),MinFeb1+26,\"\"),IF(AND(YEAR(MinFeb1+33)=TahunKalender,MONTH(MinFeb1+33)=2),MinFeb1+33,\"\"))","v":""},{"$f":"IF(DAY(MinFeb1)=1,IF(AND(YEAR(MinFeb1+27)=TahunKalender,MONTH(MinFeb1+27)=2),MinFeb1+27,\"\"),IF(AND(YEAR(MinFeb1+34)=TahunKalender,MONTH(MinFeb1+34)=2),MinFeb1+34,\"\"))","v":""},{"$f":"IF(DAY(MinFeb1)=1,IF(AND(YEAR(MinFeb1+28)=TahunKalender,MONTH(MinFeb1+28)=2),MinFeb1+28,\"\"),IF(AND(YEAR(MinFeb1+35)=TahunKalender,MONTH(MinFeb1+35)=2),MinFeb1+35,\"\"))","v":""},{"$nulls":3},"22 FEBRUARI"]
[null,null,{"$f":"IF(DAY(MinJan1)=1,IF(AND(YEAR(MinJan1+29)=TahunKalender,MONTH(MinJan1+29)=1),MinJan1+29,\"\"),IF(AND(YEAR(MinJan1+36)=TahunKalender,MONTH(MinJan1+36)=1),MinJan1+36,\"\"))","v":""},{"$f":"IF(DAY(MinJan1)=1,IF(AND(YEAR(MinJan1+30)=TahunKalender,MONTH(MinJan1+30)=1),MinJan1+30,\"\"),IF(AND(YEAR(MinJan1+37)=TahunKalender,MONTH(MinJan1+37)=1),MinJan1+37,\"\"))","v":""},{"$f":"IF(DAY(MinJan1)=1,IF(AND(YEAR(MinJan1+31)=TahunKalender,MONTH(MinJan1+31)=1),MinJan1+31,\"\"),IF(AND(YEAR(MinJan1+38)=TahunKalender,MONTH(MinJan1+38)=1),MinJan1+38,\"\"))","v":""},{"$f":"IF(DAY(MinJan1)=1,IF(AND(YEAR(MinJan1+32)=TahunKalender,MONTH(MinJan1+32)=1),MinJan1+32,\"\"),IF(AND(YEAR(MinJan1+39)=TahunKalender,MONTH(MinJan1+39)=1),MinJan1+39,\"\"))","v":""},{"$f":"IF(DAY(MinJan1)=1,IF(AND(YEAR(MinJan1+33)=TahunKalender,MONTH(MinJan1+33)=1),MinJan1+33,\"\"),IF(AND(YEAR(MinJan1+40)=TahunKalender,MONTH(MinJan1+40)=1),MinJan1+40,\"\"))","v":""},{"$f":"IF(DAY(MinJan1)=1,IF(AND(YEAR(MinJan1+34)=TahunKalender,MONTH(MinJan1+34)=1),MinJan1+34,\"\"),IF(AND(YEAR(MinJan1+41)=TahunKalender,MONTH(MinJan1+41)=1),MinJan1+41,\"\"))","v":""},{"$f":"IF(DAY(MinJan1)=1,IF(AND(YEAR(MinJan1+35)=TahunKalender,MONTH(MinJan1+35)=1),MinJan1+35,\"\"),IF(AND(YEAR(MinJan1+42)=TahunKalender,MONTH(MinJan1+42)=1),MinJan1+42,\"\"))","v":""},null,{"$f":"IF(DAY(MinFeb1)=1,IF(AND(YEAR(MinFeb1+29)=TahunKalender,MONTH(MinFeb1+29)=2),MinFeb1+29,\"\"),IF(AND(YEAR(MinFeb1+36)=TahunKalender,MONTH(MinFeb1+36)=2),MinFeb1+36,\"\"))","v":""},{"$f":"IF(DAY(MinFeb1)=1,IF(AND(YEAR(MinFeb1+30)=TahunKalender,MONTH(MinFeb1+30)=2),MinFeb1+30,\"\"),IF(AND(YEAR(MinFeb1+37)=TahunKalender,MONTH(MinFeb1+37)=2),MinFeb1+37,\"\"))","v":""},{"$f":"IF(DAY(MinFeb1)=1,IF(AND(YEAR(MinFeb1+31)=TahunKalender,MONTH(MinFeb1+31)=2),MinFeb1+31,\"\"),IF(AND(YEAR(MinFeb1+38)=TahunKalender,MONTH(MinFeb1+38)=2),MinFeb1+38,\"\"))","v":""},{"$f":"IF(DAY(MinFeb1)=1,IF(AND(YEAR(MinFeb1+32)=TahunKalender,MONTH(MinFeb1+32)=2),MinFeb1+32,\"\"),IF(AND(YEAR(MinFeb1+39)=TahunKalender,MONTH(MinFeb1+39)=2),MinFeb1+39,\"\"))","v":""},{"$f":"IF(DAY(MinFeb1)=1,IF(AND(YEAR(MinFeb1+33)=TahunKalender,MONTH(MinFeb1+33)=2),MinFeb1+33,\"\"),IF(AND(YEAR(MinFeb1+40)=TahunKalender,MONTH(MinFeb1+40)=2),MinFeb1+40,\"\"))","v":""},{"$f":"IF(DAY(MinFeb1)=1,IF(AND(YEAR(MinFeb1+34)=TahunKalender,MONTH(MinFeb1+34)=2),MinFeb1+34,\"\"),IF(AND(YEAR(MinFeb1+41)=TahunKalender,MONTH(MinFeb1+41)=2),MinFeb1+41,\"\"))","v":""},{"$f":"IF(DAY(MinFeb1)=1,IF(AND(YEAR(MinFeb1+35)=TahunKalender,MONTH(MinFeb1+35)=2),MinFeb1+35,\"\"),IF(AND(YEAR(MinFeb1+42)=TahunKalender,MONTH(MinFeb1+42)=2),MinFeb1+42,\"\"))","v":""},{"$nulls":3},"PESTA"]
[]
[null,null,"MARET",{"$nulls":7},"APRIL"]
[null,null,"S","S","R","K","J","S","M",null,"S","S","R","K","J","S","M"]
[null,null,{"$f":"IF(DAY(MinMar1)=1,\"\",IF(AND(YEAR(MinMar1+1)=TahunKalender,MONTH(MinMar1+1)=3),MinMar1+1,\"\"))","v":""},{"$f":"IF(DAY(MinMar1)=1,\"\",IF(AND(YEAR(MinMar1+2)=TahunKalender,MONTH(MinMar1+2)=3),MinMar1+2,\"\"))","v":""},{"$f":"IF(DAY(MinMar1)=1,\"\",IF(AND(YEAR(MinMar1+3)=TahunKalender,MONTH(MinMar1+3)=3),MinMar1+3,\"\"))","v":""},{"$f":"IF(DAY(MinMar1)=1,\"\",IF(AND(YEAR(MinMar1+4)=TahunKalender,MONTH(MinMar1+4)=3),MinMar1+4,\"\"))","v":""},{"$f":"IF(DAY(MinMar1)=1,\"\",IF(AND(YEAR(MinMar1+5)=TahunKalender,MONTH(MinMar1+5)=3),MinMar1+5,\"\"))","v":"2019-03-01"},{"$f":"IF(DAY(MinMar1)=1,\"\",IF(AND(YEAR(MinMar1+6)=TahunKalender,MONTH(MinMar1+6)=3),MinMar1+6,\"\"))","v":"2019-03-02"},{"$f":"IF(DAY(MinMar1)=1,IF(AND(YEAR(MinMar1)=TahunKalender,MONTH(MinMar1)=3),MinMar1,\"\"),IF(AND(YEAR(MinMar1+7)=TahunKalender,MONTH(MinMar1+7)=3),MinMar1+7,\"\"))","v":"2019-03-03"},null,{"$f":"IF(DAY(MinApr1)=1,\"\",IF(AND(YEAR(MinApr1+1)=TahunKalender,MONTH(MinApr1+1)=4),MinApr1+1,\"\"))","v":"2019-04-01"},{"$f":"IF(DAY(MinApr1)=1,\"\",IF(AND(YEAR(MinApr1+2)=TahunKalender,MONTH(MinApr1+2)=4),MinApr1+2,\"\"))","v":"2019-04-02"},{"$f":"IF(DAY(MinApr1)=1,\"\",IF(AND(YEAR(MinApr1+3)=TahunKalender,MONTH(MinApr1+3)=4),MinApr1+3,\"\"))","v":"2019-04-03"},{"$f":"IF(DAY(MinApr1)=1,\"\",IF(AND(YEAR(MinApr1+4)=TahunKalender,MONTH(MinApr1+4)=4),MinApr1+4,\"\"))","v":"2019-04-04"},{"$f":"IF(DAY(MinApr1)=1,\"\",IF(AND(YEAR(MinApr1+5)=TahunKalender,MONTH(MinApr1+5)=4),MinApr1+5,\"\"))","v":"2019-04-05"},{"$f":"IF(DAY(MinApr1)=1,\"\",IF(AND(YEAR(MinApr1+6)=TahunKalender,MONTH(MinApr1+6)=4),MinApr1+6,\"\"))","v":"2019-04-06"},{"$f":"IF(DAY(MinApr1)=1,IF(AND(YEAR(MinApr1)=TahunKalender,MONTH(MinApr1)=4),MinApr1,\"\"),IF(AND(YEAR(MinApr1+7)=TahunKalender,MONTH(MinApr1+7)=4),MinApr1+7,\"\"))","v":"2019-04-07"}]
[null,null,{"$f":"IF(DAY(MinMar1)=1,IF(AND(YEAR(MinMar1+1)=TahunKalender,MONTH(MinMar1+1)=3),MinMar1+1,\"\"),IF(AND(YEAR(MinMar1+8)=TahunKalender,MONTH(MinMar1+8)=3),MinMar1+8,\"\"))","v":"2019-03-04"},{"$f":"IF(DAY(MinMar1)=1,IF(AND(YEAR(MinMar1+2)=TahunKalender,MONTH(MinMar1+2)=3),MinMar1+2,\"\"),IF(AND(YEAR(MinMar1+9)=TahunKalender,MONTH(MinMar1+9)=3),MinMar1+9,\"\"))","v":"2019-03-05"},{"$f":"IF(DAY(MinMar1)=1,IF(AND(YEAR(MinMar1+3)=TahunKalender,MONTH(MinMar1+3)=3),MinMar1+3,\"\"),IF(AND(YEAR(MinMar1+10)=TahunKalender,MONTH(MinMar1+10)=3),MinMar1+10,\"\"))","v":"2019-03-06"},{"$f":"IF(DAY(MinMar1)=1,IF(AND(YEAR(MinMar1+4)=TahunKalender,MONTH(MinMar1+4)=3),MinMar1+4,\"\"),IF(AND(YEAR(MinMar1+11)=TahunKalender,MONTH(MinMar1+11)=3),MinMar1+11,\"\"))","v":"2019-03-07"},{"$f":"IF(DAY(MinMar1)=1,IF(AND(YEAR(MinMar1+5)=TahunKalender,MONTH(MinMar1+5)=3),MinMar1+5,\"\"),IF(AND(YEAR(MinMar1+12)=TahunKalender,MONTH(MinMar1+12)=3),MinMar1+12,\"\"))","v":"2019-03-08"},{"$f":"IF(DAY(MinMar1)=1,IF(AND(YEAR(MinMar1+6)=TahunKalender,MONTH(MinMar1+6)=3),MinMar1+6,\"\"),IF(AND(YEAR(MinMar1+13)=TahunKalender,MONTH(MinMar1+13)=3),MinMar1+13,\"\"))","v":"2019-03-09"},{"$f":"IF(DAY(MinMar1)=1,IF(AND(YEAR(MinMar1+7)=TahunKalender,MONTH(MinMar1+7)=3),MinMar1+7,\"\"),IF(AND(YEAR(MinMar1+14)=TahunKalender,MONTH(MinMar1+14)=3),MinMar1+14,\"\"))","v":"2019-03-10"},null,{"$f":"IF(DAY(MinApr1)=1,IF(AND(YEAR(MinApr1+1)=TahunKalender,MONTH(MinApr1+1)=4),MinApr1+1,\"\"),IF(AND(YEAR(MinApr1+8)=TahunKalender,MONTH(MinApr1+8)=4),MinApr1+8,\"\"))","v":"2019-04-08"},{"$f":"IF(DAY(MinApr1)=1,IF(AND(YEAR(MinApr1+2)=TahunKalender,MONTH(MinApr1+2)=4),MinApr1+2,\"\"),IF(AND(YEAR(MinApr1+9)=TahunKalender,MONTH(MinApr1+9)=4),MinApr1+9,\"\"))","v":"2019-04-09"},{"$f":"IF(DAY(MinApr1)=1,IF(AND(YEAR(MinApr1+3)=TahunKalender,MONTH(MinApr1+3)=4),MinApr1+3,\"\"),IF(AND(YEAR(MinApr1+10)=TahunKalender,MONTH(MinApr1+10)=4),MinApr1+10,\"\"))","v":"2019-04-10"},{"$f":"IF(DAY(MinApr1)=1,IF(AND(YEAR(MinApr1+4)=TahunKalender,MONTH(MinApr1+4)=4),MinApr1+4,\"\"),IF(AND(YEAR(MinApr1+11)=TahunKalender,MONTH(MinApr1+11)=4),MinApr1+11,\"\"))","v":"2019-04-11"},{"$f":"IF(DAY(MinApr1)=1,IF(AND(YEAR(MinApr1+5)=TahunKalender,MONTH(MinApr1+5)=4),MinApr1+5,\"\"),IF(AND(YEAR(MinApr1+12)=TahunKalender,MONTH(MinApr1+12)=4),MinApr1+12,\"\"))","v":"2019-04-12"},{"$f":"IF(DAY(MinApr1)=1,IF(AND(YEAR(MinApr1+6)=TahunKalender,MONTH(MinApr1+6)=4),MinApr1+6,\"\"),IF(AND(YEAR(MinApr1+13)=TahunKalender,MONTH(MinApr1+13)=4),MinApr1+13,\"\"))","v":"2019-04-13"},{"$f":"IF(DAY(MinApr1)=1,IF(AND(YEAR(MinApr1+7)=TahunKalender,MONTH(MinApr1+7)=4),MinApr1+7,\"\"),IF(AND(YEAR(MinApr1+14)=TahunKalender,MONTH(MinApr1+14)=4),MinApr1+14,\"\"))","v":"2019-04-14"}]
[null,null,{"$f":"IF(DAY(MinMar1)=1,IF(AND(YEAR(MinMar1+8)=TahunKalender,MONTH(MinMar1+8)=3),MinMar1+8,\"\"),IF(AND(YEAR(MinMar1+15)=TahunKalender,MONTH(MinMar1+15)=3),MinMar1+15,\"\"))","v":"2019-03-11"},{"$f":"IF(DAY(MinMar1)=1,IF(AND(YEAR(MinMar1+9)=TahunKalender,MONTH(MinMar1+9)=3),MinMar1+9,\"\"),IF(AND(YEAR(MinMar1+16)=TahunKalender,MONTH(MinMar1+16)=3),MinMar1+16,\"\"))","v":"2019-03-12"},{"$f":"IF(DAY(MinMar1)=1,IF(AND(YEAR(MinMar1+10)=TahunKalender,MONTH(MinMar1+10)=3),MinMar1+10,\"\"),IF(AND(YEAR(MinMar1+17)=TahunKalender,MONTH(MinMar1+17)=3),MinMar1+17,\"\"))","v":"2019-03-13"},{"$f":"IF(DAY(MinMar1)=1,IF(AND(YEAR(MinMar1+11)=TahunKalender,MONTH(MinMar1+11)=3),MinMar1+11,\"\"),IF(AND(YEAR(MinMar1+18)=TahunKalender,MONTH(MinMar1+18)=3),MinMar1+18,\"\"))","v":"2019-03-14"},{"$f":"IF(DAY(MinMar1)=1,IF(AND(YEAR(MinMar1+12)=TahunKalender,MONTH(MinMar1+12)=3),MinMar1+12,\"\"),IF(AND(YEAR(MinMar1+19)=TahunKalender,MONTH(MinMar1+19)=3),MinMar1+19,\"\"))","v":"2019-03-15"},{"$f":"IF(DAY(MinMar1)=1,IF(AND(YEAR(MinMar1+13)=TahunKalender,MONTH(MinMar1+13)=3),MinMar1+13,\"\"),IF(AND(YEAR(MinMar1+20)=TahunKalender,MONTH(MinMar1+20)=3),MinMar1+20,\"\"))","v":"2019-03-16"},{"$f":"IF(DAY(MinMar1)=1,IF(AND(YEAR(MinMar1+14)=TahunKalender,MONTH(MinMar1+14)=3),MinMar1+14,\"\"),IF(AND(YEAR(MinMar1+21)=TahunKalender,MONTH(MinMar1+21)=3),MinMar1+21,\"\"))","v":"2019-03-17"},null,{"$f":"IF(DAY(MinApr1)=1,IF(AND(YEAR(MinApr1+8)=TahunKalender,MONTH(MinApr1+8)=4),MinApr1+8,\"\"),IF(AND(YEAR(MinApr1+15)=TahunKalender,MONTH(MinApr1+15)=4),MinApr1+15,\"\"))","v":"2019-04-15"},{"$f":"IF(DAY(MinApr1)=1,IF(AND(YEAR(MinApr1+9)=TahunKalender,MONTH(MinApr1+9)=4),MinApr1+9,\"\"),IF(AND(YEAR(MinApr1+16)=TahunKalender,MONTH(MinApr1+16)=4),MinApr1+16,\"\"))","v":"2019-04-16"},{"$f":"IF(DAY(MinApr1)=1,IF(AND(YEAR(MinApr1+10)=TahunKalender,MONTH(MinApr1+10)=4),MinApr1+10,\"\"),IF(AND(YEAR(MinApr1+17)=TahunKalender,MONTH(MinApr1+17)=4),MinApr1+17,\"\"))","v":"2019-04-17"},{"$f":"IF(DAY(MinApr1)=1,IF(AND(YEAR(MinApr1+11)=TahunKalender,MONTH(MinApr1+11)=4),MinApr1+11,\"\"),IF(AND(YEAR(MinApr1+18)=TahunKalender,MONTH(MinApr1+18)=4),MinApr1+18,\"\"))","v":"2019-04-18"},{"$f":"IF(DAY(MinApr1)=1,IF(AND(YEAR(MinApr1+12)=TahunKalender,MONTH(MinApr1+12)=4),MinApr1+12,\"\"),IF(AND(YEAR(MinApr1+19)=TahunKalender,MONTH(MinApr1+19)=4),MinApr1+19,\"\"))","v":"2019-04-19"},{"$f":"IF(DAY(MinApr1)=1,IF(AND(YEAR(MinApr1+13)=TahunKalender,MONTH(MinApr1+13)=4),MinApr1+13,\"\"),IF(AND(YEAR(MinApr1+20)=TahunKalender,MONTH(MinApr1+20)=4),MinApr1+20,\"\"))","v":"2019-04-20"},{"$f":"IF(DAY(MinApr1)=1,IF(AND(YEAR(MinApr1+14)=TahunKalender,MONTH(MinApr1+14)=4),MinApr1+14,\"\"),IF(AND(YEAR(MinApr1+21)=TahunKalender,MONTH(MinApr1+21)=4),MinApr1+21,\"\"))","v":"2019-04-21"}]
[null,null,{"$f":"IF(DAY(MinMar1)=1,IF(AND(YEAR(MinMar1+15)=TahunKalender,MONTH(MinMar1+15)=3),MinMar1+15,\"\"),IF(AND(YEAR(MinMar1+22)=TahunKalender,MONTH(MinMar1+22)=3),MinMar1+22,\"\"))","v":"2019-03-18"},{"$f":"IF(DAY(MinMar1)=1,IF(AND(YEAR(MinMar1+16)=TahunKalender,MONTH(MinMar1+16)=3),MinMar1+16,\"\"),IF(AND(YEAR(MinMar1+23)=TahunKalender,MONTH(MinMar1+23)=3),MinMar1+23,\"\"))","v":"2019-03-19"},{"$f":"IF(DAY(MinMar1)=1,IF(AND(YEAR(MinMar1+17)=TahunKalender,MONTH(MinMar1+17)=3),MinMar1+17,\"\"),IF(AND(YEAR(MinMar1+24)=TahunKalender,MONTH(MinMar1+24)=3),MinMar1+24,\"\"))","v":"2019-03-20"},{"$f":"IF(DAY(MinMar1)=1,IF(AND(YEAR(MinMar1+18)=TahunKalender,MONTH(MinMar1+18)=3),MinMar1+18,\"\"),IF(AND(YEAR(MinMar1+25)=TahunKalender,MONTH(MinMar1+25)=3),MinMar1+25,\"\"))","v":"2019-03-21"},{"$f":"IF(DAY(MinMar1)=1,IF(AND(YEAR(MinMar1+19)=TahunKalender,MONTH(MinMar1+19)=3),MinMar1+19,\"\"),IF(AND(YEAR(MinMar1+26)=TahunKalender,MONTH(MinMar1+26)=3),MinMar1+26,\"\"))","v":"2019-03-22"},{"$f":"IF(DAY(MinMar1)=1,IF(AND(YEAR(MinMar1+20)=TahunKalender,MONTH(MinMar1+20)=3),MinMar1+20,\"\"),IF(AND(YEAR(MinMar1+27)=TahunKalender,MONTH(MinMar1+27)=3),MinMar1+27,\"\"))","v":"2019-03-23"},{"$f":"IF(DAY(MinMar1)=1,IF(AND(YEAR(MinMar1+21)=TahunKalender,MONTH(MinMar1+21)=3),MinMar1+21,\"\"),IF(AND(YEAR(MinMar1+28)=TahunKalender,MONTH(MinMar1+28)=3),MinMar1+28,\"\"))","v":"2019-03-24"},null,{"$f":"IF(DAY(MinApr1)=1,IF(AND(YEAR(MinApr1+15)=TahunKalender,MONTH(MinApr1+15)=4),MinApr1+15,\"\"),IF(AND(YEAR(MinApr1+22)=TahunKalender,MONTH(MinApr1+22)=4),MinApr1+22,\"\"))","v":"2019-04-22"},{"$f":"IF(DAY(MinApr1)=1,IF(AND(YEAR(MinApr1+16)=TahunKalender,MONTH(MinApr1+16)=4),MinApr1+16,\"\"),IF(AND(YEAR(MinApr1+23)=TahunKalender,MONTH(MinApr1+23)=4),MinApr1+23,\"\"))","v":"2019-04-23"},{"$f":"IF(DAY(MinApr1)=1,IF(AND(YEAR(MinApr1+17)=TahunKalender,MONTH(MinApr1+17)=4),MinApr1+17,\"\"),IF(AND(YEAR(MinApr1+24)=TahunKalender,MONTH(MinApr1+24)=4),MinApr1+24,\"\"))","v":"2019-04-24"},{"$f":"IF(DAY(MinApr1)=1,IF(AND(YEAR(MinApr1+18)=TahunKalender,MONTH(MinApr1+18)=4),MinApr1+18,\"\"),IF(AND(YEAR(MinApr1+25)=TahunKalender,MONTH(MinApr1+25)=4),MinApr1+25,\"\"))","v":"2019-04-25"},{"$f":"IF(DAY(MinApr1)=1,IF(AND(YEAR(MinApr1+19)=TahunKalender,MONTH(MinApr1+19)=4),MinApr1+19,\"\"),IF(AND(YEAR(MinApr1+26)=TahunKalender,MONTH(MinApr1+26)=4),MinApr1+26,\"\"))","v":"2019-04-26"},{"$f":"IF(DAY(MinApr1)=1,IF(AND(YEAR(MinApr1+20)=TahunKalender,MONTH(MinApr1+20)=4),MinApr1+20,\"\"),IF(AND(YEAR(MinApr1+27)=TahunKalender,MONTH(MinApr1+27)=4),MinApr1+27,\"\"))","v":"2019-04-27"},{"$f":"IF(DAY(MinApr1)=1,IF(AND(YEAR(MinApr1+21)=TahunKalender,MONTH(MinApr1+21)=4),MinApr1+21,\"\"),IF(AND(YEAR(MinApr1+28)=TahunKalender,MONTH(MinApr1+28)=4),MinApr1+28,\"\"))","v":"2019-04-28"}]
[null,null,{"$f":"IF(DAY(MinMar1)=1,IF(AND(YEAR(MinMar1+22)=TahunKalender,MONTH(MinMar1+22)=3),MinMar1+22,\"\"),IF(AND(YEAR(MinMar1+29)=TahunKalender,MONTH(MinMar1+29)=3),MinMar1+29,\"\"))","v":"2019-03-25"},{"$f":"IF(DAY(MinMar1)=1,IF(AND(YEAR(MinMar1+23)=TahunKalender,MONTH(MinMar1+23)=3),MinMar1+23,\"\"),IF(AND(YEAR(MinMar1+30)=TahunKalender,MONTH(MinMar1+30)=3),MinMar1+30,\"\"))","v":"2019-03-26"},{"$f":"IF(DAY(MinMar1)=1,IF(AND(YEAR(MinMar1+24)=TahunKalender,MONTH(MinMar1+24)=3),MinMar1+24,\"\"),IF(AND(YEAR(MinMar1+31)=TahunKalender,MONTH(MinMar1+31)=3),MinMar1+31,\"\"))","v":"2019-03-27"},{"$f":"IF(DAY(MinMar1)=1,IF(AND(YEAR(MinMar1+25)=TahunKalender,MONTH(MinMar1+25)=3),MinMar1+25,\"\"),IF(AND(YEAR(MinMar1+32)=TahunKalender,MONTH(MinMar1+32)=3),MinMar1+32,\"\"))","v":"2019-03-28"},{"$f":"IF(DAY(MinMar1)=1,IF(AND(YEAR(MinMar1+26)=TahunKalender,MONTH(MinMar1+26)=3),MinMar1+26,\"\"),IF(AND(YEAR(MinMar1+33)=TahunKalender,MONTH(MinMar1+33)=3),MinMar1+33,\"\"))","v":"2019-03-29"},{"$f":"IF(DAY(MinMar1)=1,IF(AND(YEAR(MinMar1+27)=TahunKalender,MONTH(MinMar1+27)=3),MinMar1+27,\"\"),IF(AND(YEAR(MinMar1+34)=TahunKalender,MONTH(MinMar1+34)=3),MinMar1+34,\"\"))","v":"2019-03-30"},{"$f":"IF(DAY(MinMar1)=1,IF(AND(YEAR(MinMar1+28)=TahunKalender,MONTH(MinMar1+28)=3),MinMar1+28,\"\"),IF(AND(YEAR(MinMar1+35)=TahunKalender,MONTH(MinMar1+35)=3),MinMar1+35,\"\"))","v":"2019-03-31"},null,{"$f":"IF(DAY(MinApr1)=1,IF(AND(YEAR(MinApr1+22)=TahunKalender,MONTH(MinApr1+22)=4),MinApr1+22,\"\"),IF(AND(YEAR(MinApr1+29)=TahunKalender,MONTH(MinApr1+29)=4),MinApr1+29,\"\"))","v":"2019-04-29"},{"$f":"IF(DAY(MinApr1)=1,IF(AND(YEAR(MinApr1+23)=TahunKalender,MONTH(MinApr1+23)=4),MinApr1+23,\"\"),IF(AND(YEAR(MinApr1+30)=TahunKalender,MONTH(MinApr1+30)=4),MinApr1+30,\"\"))","v":"2019-04-30"},{"$f":"IF(DAY(MinApr1)=1,IF(AND(YEAR(MinApr1+24)=TahunKalender,MONTH(MinApr1+24)=4),MinApr1+24,\"\"),IF(AND(YEAR(MinApr1+31)=TahunKalender,MONTH(MinApr1+31)=4),MinApr1+31,\"\"))","v":""},{"$f":"IF(DAY(MinApr1)=1,IF(AND(YEAR(MinApr1+25)=TahunKalender,MONTH(MinApr1+25)=4),MinApr1+25,\"\"),IF(AND(YEAR(MinApr1+32)=TahunKalender,MONTH(MinApr1+32)=4),MinApr1+32,\"\"))","v":""},{"$f":"IF(DAY(MinApr1)=1,IF(AND(YEAR(MinApr1+26)=TahunKalender,MONTH(MinApr1+26)=4),MinApr1+26,\"\"),IF(AND(YEAR(MinApr1+33)=TahunKalender,MONTH(MinApr1+33)=4),MinApr1+33,\"\"))","v":""},{"$f":"IF(DAY(MinApr1)=1,IF(AND(YEAR(MinApr1+27)=TahunKalender,MONTH(MinApr1+27)=4),MinApr1+27,\"\"),IF(AND(YEAR(MinApr1+34)=TahunKalender,MONTH(MinApr1+34)=4),MinApr1+34,\"\"))","v":""},{"$f":"IF(DAY(MinApr1)=1,IF(AND(YEAR(MinApr1+28)=TahunKalender,MONTH(MinApr1+28)=4),MinApr1+28,\"\"),IF(AND(YEAR(MinApr1+35)=TahunKalender,MONTH(MinApr1+35)=4),MinApr1+35,\"\"))","v":""}]
[null,null,{"$f":"IF(DAY(MinMar1)=1,IF(AND(YEAR(MinMar1+29)=TahunKalender,MONTH(MinMar1+29)=3),MinMar1+29,\"\"),IF(AND(YEAR(MinMar1+36)=TahunKalender,MONTH(MinMar1+36)=3),MinMar1+36,\"\"))","v":""},{"$f":"IF(DAY(MinMar1)=1,IF(AND(YEAR(MinMar1+30)=TahunKalender,MONTH(MinMar1+30)=3),MinMar1+30,\"\"),IF(AND(YEAR(MinMar1+37)=TahunKalender,MONTH(MinMar1+37)=3),MinMar1+37,\"\"))","v":""},{"$f":"IF(DAY(MinMar1)=1,IF(AND(YEAR(MinMar1+31)=TahunKalender,MONTH(MinMar1+31)=3),MinMar1+31,\"\"),IF(AND(YEAR(MinMar1+38)=TahunKalender,MONTH(MinMar1+38)=3),MinMar1+38,\"\"))","v":""},{"$f":"IF(DAY(MinMar1)=1,IF(AND(YEAR(MinMar1+32)=TahunKalender,MONTH(MinMar1+32)=3),MinMar1+32,\"\"),IF(AND(YEAR(MinMar1+39)=TahunKalender,MONTH(MinMar1+39)=3),MinMar1+39,\"\"))","v":""},{"$f":"IF(DAY(MinMar1)=1,IF(AND(YEAR(MinMar1+33)=TahunKalender,MONTH(MinMar1+33)=3),MinMar1+33,\"\"),IF(AND(YEAR(MinMar1+40)=TahunKalender,MONTH(MinMar1+40)=3),MinMar1+40,\"\"))","v":""},{"$f":"IF(DAY(MinMar1)=1,IF(AND(YEAR(MinMar1+34)=TahunKalender,MONTH(MinMar1+34)=3),MinMar1+34,\"\"),IF(AND(YEAR(MinMar1+41)=TahunKalender,MONTH(MinMar1+41)=3),MinMar1+41,\"\"))","v":""},{"$f":"IF(DAY(MinMar1)=1,IF(AND(YEAR(MinMar1+35)=TahunKalender,MONTH(MinMar1+35)=3),MinMar1+35,\"\"),IF(AND(YEAR(MinMar1+42)=TahunKalender,MONTH(MinMar1+42)=3),MinMar1+42,\"\"))","v":""},null,{"$f":"IF(DAY(MinApr1)=1,IF(AND(YEAR(MinApr1+29)=TahunKalender,MONTH(MinApr1+29)=4),MinApr1+29,\"\"),IF(AND(YEAR(MinApr1+36)=TahunKalender,MONTH(MinApr1+36)=4),MinApr1+36,\"\"))","v":""},{"$f":"IF(DAY(MinApr1)=1,IF(AND(YEAR(MinApr1+30)=TahunKalender,MONTH(MinApr1+30)=4),MinApr1+30,\"\"),IF(AND(YEAR(MinApr1+37)=TahunKalender,MONTH(MinApr1+37)=4),MinApr1+37,\"\"))","v":""},{"$f":"IF(DAY(MinApr1)=1,IF(AND(YEAR(MinApr1+31)=TahunKalender,MONTH(MinApr1+31)=4),MinApr1+31,\"\"),IF(AND(YEAR(MinApr1+38)=TahunKalender,MONTH(MinApr1+38)=4),MinApr1+38,\"\"))","v":""},{"$f":"IF(DAY(MinApr1)=1,IF(AND(YEAR(MinApr1+32)=TahunKalender,MONTH(MinApr1+32)=4),MinApr1+32,\"\"),IF(AND(YEAR(MinApr1+39)=TahunKalender,MONTH(MinApr1+39)=4),MinApr1+39,\"\"))","v":""},{"$f":"IF(DAY(MinApr1)=1,IF(AND(YEAR(MinApr1+33)=TahunKalender,MONTH(MinApr1+33)=4),MinApr1+33,\"\"),IF(AND(YEAR(MinApr1+40)=TahunKalender,MONTH(MinApr1+40)=4),MinApr1+40,\"\"))","v":""},{"$f":"IF(DAY(MinApr1)=1,IF(AND(YEAR(MinApr1+34)=TahunKalender,MONTH(MinApr1+34)=4),MinApr1+34,\"\"),IF(AND(YEAR(MinApr1+41)=TahunKalender,MONTH(MinApr1+41)=4),MinApr1+41,\"\"))","v":""},{"$f":"IF(DAY(MinApr1)=1,IF(AND(YEAR(MinApr1+35)=TahunKalender,MONTH(MinApr1+35)=4),MinApr1+35,\"\"),IF(AND(YEAR(MinApr1+42)=TahunKalender,MONTH(MinApr1+42)=4),MinApr1+42,\"\"))","v":""}]
[]
[null,null,"MEI",{"$nulls":7},"JUNI"]
[null,null,"S","S","R","K","J","S","M",null,"S","S","R","K","J","S","M"]
[null,null,{"$f":"IF(DAY(MinMei1)=1,\"\",IF(AND(YEAR(MinMei1+1)=TahunKalender,MONTH(MinMei1+1)=5),MinMei1+1,\"\"))","v":""},{"$f":"IF(DAY(MinMei1)=1,\"\",IF(AND(YEAR(MinMei1+2)=TahunKalender,MONTH(MinMei1+2)=5),MinMei1+2,\"\"))","v":""},{"$f":"IF(DAY(MinMei1)=1,\"\",IF(AND(YEAR(MinMei1+3)=TahunKalender,MONTH(MinMei1+3)=5),MinMei1+3,\"\"))","v":"2019-05-01"},{"$f":"IF(DAY(MinMei1)=1,\"\",IF(AND(YEAR(MinMei1+4)=TahunKalender,MONTH(MinMei1+4)=5),MinMei1+4,\"\"))","v":"2019-05-02"},{"$f":"IF(DAY(MinMei1)=1,\"\",IF(AND(YEAR(MinMei1+5)=TahunKalender,MONTH(MinMei1+5)=5),MinMei1+5,\"\"))","v":"2019-05-03"},{"$f":"IF(DAY(MinMei1)=1,\"\",IF(AND(YEAR(MinMei1+6)=TahunKalender,MONTH(MinMei1+6)=5),MinMei1+6,\"\"))","v":"2019-05-04"},{"$f":"IF(DAY(MinMei1)=1,IF(AND(YEAR(MinMei1)=TahunKalender,MONTH(MinMei1)=5),MinMei1,\"\"),IF(AND(YEAR(MinMei1+7)=TahunKalender,MONTH(MinMei1+7)=5),MinMei1+7,\"\"))","v":"2019-05-05"},null,{"$f":"IF(DAY(MinJun1)=1,\"\",IF(AND(YEAR(MinJun1+1)=TahunKalender,MONTH(MinJun1+1)=6),MinJun1+1,\"\"))","v":""},{"$f":"IF(DAY(MinJun1)=1,\"\",IF(AND(YEAR(MinJun1+2)=TahunKalender,MONTH(MinJun1+2)=6),MinJun1+2,\"\"))","v":""},{"$f":"IF(DAY(MinJun1)=1,\"\",IF(AND(YEAR(MinJun1+3)=TahunKalender,MONTH(MinJun1+3)=6),MinJun1+3,\"\"))","v":""},{"$f":"IF(DAY(MinJun1)=1,\"\",IF(AND(YEAR(MinJun1+4)=TahunKalender,MONTH(MinJun1+4)=6),MinJun1+4,\"\"))","v":""},{"$f":"IF(DAY(MinJun1)=1,\"\",IF(AND(YEAR(MinJun1+5)=TahunKalender,MONTH(MinJun1+5)=6),MinJun1+5,\"\"))","v":""},{"$f":"IF(DAY(MinJun1)=1,\"\",IF(AND(YEAR(MinJun1+6)=TahunKalender,MONTH(MinJun1+6)=6),MinJun1+6,\"\"))","v":"2019-06-01"},{"$f":"IF(DAY(MinJun1)=1,IF(AND(YEAR(MinJun1)=TahunKalender,MONTH(MinJun1)=6),MinJun1,\"\"),IF(AND(YEAR(MinJun1+7)=TahunKalender,MONTH(MinJun1+7)=6),MinJun1+7,\"\"))","v":"2019-06-02"}]
[null,null,{"$f":"IF(DAY(MinMei1)=1,IF(AND(YEAR(MinMei1+1)=TahunKalender,MONTH(MinMei1+1)=5),MinMei1+1,\"\"),IF(AND(YEAR(MinMei1+8)=TahunKalender,MONTH(MinMei1+8)=5),MinMei1+8,\"\"))","v":"2019-05-06"},{"$f":"IF(DAY(MinMei1)=1,IF(AND(YEAR(MinMei1+2)=TahunKalender,MONTH(MinMei1+2)=5),MinMei1+2,\"\"),IF(AND(YEAR(MinMei1+9)=TahunKalender,MONTH(MinMei1+9)=5),MinMei1+9,\"\"))","v":"2019-05-07"},{"$f":"IF(DAY(MinMei1)=1,IF(AND(YEAR(MinMei1+3)=TahunKalender,MONTH(MinMei1+3)=5),MinMei1+3,\"\"),IF(AND(YEAR(MinMei1+10)=TahunKalender,MONTH(MinMei1+10)=5),MinMei1+10,\"\"))","v":"2019-05-08"},{"$f":"IF(DAY(MinMei1)=1,IF(AND(YEAR(MinMei1+4)=TahunKalender,MONTH(MinMei1+4)=5),MinMei1+4,\"\"),IF(AND(YEAR(MinMei1+11)=TahunKalender,MONTH(MinMei1+11)=5),MinMei1+11,\"\"))","v":"2019-05-09"},{"$f":"IF(DAY(MinMei1)=1,IF(AND(YEAR(MinMei1+5)=TahunKalender,MONTH(MinMei1+5)=5),MinMei1+5,\"\"),IF(AND(YEAR(MinMei1+12)=TahunKalender,MONTH(MinMei1+12)=5),MinMei1+12,\"\"))","v":"2019-05-10"},{"$f":"IF(DAY(MinMei1)=1,IF(AND(YEAR(MinMei1+6)=TahunKalender,MONTH(MinMei1+6)=5),MinMei1+6,\"\"),IF(AND(YEAR(MinMei1+13)=TahunKalender,MONTH(MinMei1+13)=5),MinMei1+13,\"\"))","v":"2019-05-11"},{"$f":"IF(DAY(MinMei1)=1,IF(AND(YEAR(MinMei1+7)=TahunKalender,MONTH(MinMei1+7)=5),MinMei1+7,\"\"),IF(AND(YEAR(MinMei1+14)=TahunKalender,MONTH(MinMei1+14)=5),MinMei1+14,\"\"))","v":"2019-05-12"},null,{"$f":"IF(DAY(MinJun1)=1,IF(AND(YEAR(MinJun1+1)=TahunKalender,MONTH(MinJun1+1)=6),MinJun1+1,\"\"),IF(AND(YEAR(MinJun1+8)=TahunKalender,MONTH(MinJun1+8)=6),MinJun1+8,\"\"))","v":"2019-06-03"},{"$f":"IF(DAY(MinJun1)=1,IF(AND(YEAR(MinJun1+2)=TahunKalender,MONTH(MinJun1+2)=6),MinJun1+2,\"\"),IF(AND(YEAR(MinJun1+9)=TahunKalender,MONTH(MinJun1+9)=6),MinJun1+9,\"\"))","v":"2019-06-04"},{"$f":"IF(DAY(MinJun1)=1,IF(AND(YEAR(MinJun1+3)=TahunKalender,MONTH(MinJun1+3)=6),MinJun1+3,\"\"),IF(AND(YEAR(MinJun1+10)=TahunKalender,MONTH(MinJun1+10)=6),MinJun1+10,\"\"))","v":"2019-06-05"},{"$f":"IF(DAY(MinJun1)=1,IF(AND(YEAR(MinJun1+4)=TahunKalender,MONTH(MinJun1+4)=6),MinJun1+4,\"\"),IF(AND(YEAR(MinJun1+11)=TahunKalender,MONTH(MinJun1+11)=6),MinJun1+11,\"\"))","v":"2019-06-06"},{"$f":"IF(DAY(MinJun1)=1,IF(AND(YEAR(MinJun1+5)=TahunKalender,MONTH(MinJun1+5)=6),MinJun1+5,\"\"),IF(AND(YEAR(MinJun1+12)=TahunKalender,MONTH(MinJun1+12)=6),MinJun1+12,\"\"))","v":"2019-06-07"},{"$f":"IF(DAY(MinJun1)=1,IF(AND(YEAR(MinJun1+6)=TahunKalender,MONTH(MinJun1+6)=6),MinJun1+6,\"\"),IF(AND(YEAR(MinJun1+13)=TahunKalender,MONTH(MinJun1+13)=6),MinJun1+13,\"\"))","v":"2019-06-08"},{"$f":"IF(DAY(MinJun1)=1,IF(AND(YEAR(MinJun1+7)=TahunKalender,MONTH(MinJun1+7)=6),MinJun1+7,\"\"),IF(AND(YEAR(MinJun1+14)=TahunKalender,MONTH(MinJun1+14)=6),MinJun1+14,\"\"))","v":"2019-06-09"}]
[null,null,{"$f":"IF(DAY(MinMei1)=1,IF(AND(YEAR(MinMei1+8)=TahunKalender,MONTH(MinMei1+8)=5),MinMei1+8,\"\"),IF(AND(YEAR(MinMei1+15)=TahunKalender,MONTH(MinMei1+15)=5),MinMei1+15,\"\"))","v":"2019-05-13"},{"$f":"IF(DAY(MinMei1)=1,IF(AND(YEAR(MinMei1+9)=TahunKalender,MONTH(MinMei1+9)=5),MinMei1+9,\"\"),IF(AND(YEAR(MinMei1+16)=TahunKalender,MONTH(MinMei1+16)=5),MinMei1+16,\"\"))","v":"2019-05-14"},{"$f":"IF(DAY(MinMei1)=1,IF(AND(YEAR(MinMei1+10)=TahunKalender,MONTH(MinMei1+10)=5),MinMei1+10,\"\"),IF(AND(YEAR(MinMei1+17)=TahunKalender,MONTH(MinMei1+17)=5),MinMei1+17,\"\"))","v":"2019-05-15"},{"$f":"IF(DAY(MinMei1)=1,IF(AND(YEAR(MinMei1+11)=TahunKalender,MONTH(MinMei1+11)=5),MinMei1+11,\"\"),IF(AND(YEAR(MinMei1+18)=TahunKalender,MONTH(MinMei1+18)=5),MinMei1+18,\"\"))","v":"2019-05-16"},{"$f":"IF(DAY(MinMei1)=1,IF(AND(YEAR(MinMei1+12)=TahunKalender,MONTH(MinMei1+12)=5),MinMei1+12,\"\"),IF(AND(YEAR(MinMei1+19)=TahunKalender,MONTH(MinMei1+19)=5),MinMei1+19,\"\"))","v":"2019-05-17"},{"$f":"IF(DAY(MinMei1)=1,IF(AND(YEAR(MinMei1+13)=TahunKalender,MONTH(MinMei1+13)=5),MinMei1+13,\"\"),IF(AND(YEAR(MinMei1+20)=TahunKalender,MONTH(MinMei1+20)=5),MinMei1+20,\"\"))","v":"2019-05-18"},{"$f":"IF(DAY(MinMei1)=1,IF(AND(YEAR(MinMei1+14)=TahunKalender,MONTH(MinMei1+14)=5),MinMei1+14,\"\"),IF(AND(YEAR(MinMei1+21)=TahunKalender,MONTH(MinMei1+21)=5),MinMei1+21,\"\"))","v":"2019-05-19"},null,{"$f":"IF(DAY(MinJun1)=1,IF(AND(YEAR(MinJun1+8)=TahunKalender,MONTH(MinJun1+8)=6),MinJun1+8,\"\"),IF(AND(YEAR(MinJun1+15)=TahunKalender,MONTH(MinJun1+15)=6),MinJun1+15,\"\"))","v":"2019-06-10"},{"$f":"IF(DAY(MinJun1)=1,IF(AND(YEAR(MinJun1+9)=TahunKalender,MONTH(MinJun1+9)=6),MinJun1+9,\"\"),IF(AND(YEAR(MinJun1+16)=TahunKalender,MONTH(MinJun1+16)=6),MinJun1+16,\"\"))","v":"2019-06-11"},{"$f":"IF(DAY(MinJun1)=1,IF(AND(YEAR(MinJun1+10)=TahunKalender,MONTH(MinJun1+10)=6),MinJun1+10,\"\"),IF(AND(YEAR(MinJun1+17)=TahunKalender,MONTH(MinJun1+17)=6),MinJun1+17,\"\"))","v":"2019-06-12"},{"$f":"IF(DAY(MinJun1)=1,IF(AND(YEAR(MinJun1+11)=TahunKalender,MONTH(MinJun1+11)=6),MinJun1+11,\"\"),IF(AND(YEAR(MinJun1+18)=TahunKalender,MONTH(MinJun1+18)=6),MinJun1+18,\"\"))","v":"2019-06-13"},{"$f":"IF(DAY(MinJun1)=1,IF(AND(YEAR(MinJun1+12)=TahunKalender,MONTH(MinJun1+12)=6),MinJun1+12,\"\"),IF(AND(YEAR(MinJun1+19)=TahunKalender,MONTH(MinJun1+19)=6),MinJun1+19,\"\"))","v":"2019-06-14"},{"$f":"IF(DAY(MinJun1)=1,IF(AND(YEAR(MinJun1+13)=TahunKalender,MONTH(MinJun1+13)=6),MinJun1+13,\"\"),IF(AND(YEAR(MinJun1+20)=TahunKalender,MONTH(MinJun1+20)=6),MinJun1+20,\"\"))","v":"2019-06-15"},{"$f":"IF(DAY(MinJun1)=1,IF(AND(YEAR(MinJun1+14)=TahunKalender,MONTH(MinJun1+14)=6),MinJun1+14,\"\"),IF(AND(YEAR(MinJun1+21)=TahunKalender,MONTH(MinJun1+21)=6),MinJun1+21,\"\"))","v":"2019-06-16"}]
[null,null,{"$f":"IF(DAY(MinMei1)=1,IF(AND(YEAR(MinMei1+15)=TahunKalender,MONTH(MinMei1+15)=5),MinMei1+15,\"\"),IF(AND(YEAR(MinMei1+22)=TahunKalender,MONTH(MinMei1+22)=5),MinMei1+22,\"\"))","v":"2019-05-20"},{"$f":"IF(DAY(MinMei1)=1,IF(AND(YEAR(MinMei1+16)=TahunKalender,MONTH(MinMei1+16)=5),MinMei1+16,\"\"),IF(AND(YEAR(MinMei1+23)=TahunKalender,MONTH(MinMei1+23)=5),MinMei1+23,\"\"))","v":"2019-05-21"},{"$f":"IF(DAY(MinMei1)=1,IF(AND(YEAR(MinMei1+17)=TahunKalender,MONTH(MinMei1+17)=5),MinMei1+17,\"\"),IF(AND(YEAR(MinMei1+24)=TahunKalender,MONTH(MinMei1+24)=5),MinMei1+24,\"\"))","v":"2019-05-22"},{"$f":"IF(DAY(MinMei1)=1,IF(AND(YEAR(MinMei1+18)=TahunKalender,MONTH(MinMei1+18)=5),MinMei1+18,\"\"),IF(AND(YEAR(MinMei1+25)=TahunKalender,MONTH(MinMei1+25)=5),MinMei1+25,\"\"))","v":"2019-05-23"},{"$f":"IF(DAY(MinMei1)=1,IF(AND(YEAR(MinMei1+19)=TahunKalender,MONTH(MinMei1+19)=5),MinMei1+19,\"\"),IF(AND(YEAR(MinMei1+26)=TahunKalender,MONTH(MinMei1+26)=5),MinMei1+26,\"\"))","v":"2019-05-24"},{"$f":"IF(DAY(MinMei1)=1,IF(AND(YEAR(MinMei1+20)=TahunKalender,MONTH(MinMei1+20)=5),MinMei1+20,\"\"),IF(AND(YEAR(MinMei1+27)=TahunKalender,MONTH(MinMei1+27)=5),MinMei1+27,\"\"))","v":"2019-05-25"},{"$f":"IF(DAY(MinMei1)=1,IF(AND(YEAR(MinMei1+21)=TahunKalender,MONTH(MinMei1+21)=5),MinMei1+21,\"\"),IF(AND(YEAR(MinMei1+28)=TahunKalender,MONTH(MinMei1+28)=5),MinMei1+28,\"\"))","v":"2019-05-26"},null,{"$f":"IF(DAY(MinJun1)=1,IF(AND(YEAR(MinJun1+15)=TahunKalender,MONTH(MinJun1+15)=6),MinJun1+15,\"\"),IF(AND(YEAR(MinJun1+22)=TahunKalender,MONTH(MinJun1+22)=6),MinJun1+22,\"\"))","v":"2019-06-17"},{"$f":"IF(DAY(MinJun1)=1,IF(AND(YEAR(MinJun1+16)=TahunKalender,MONTH(MinJun1+16)=6),MinJun1+16,\"\"),IF(AND(YEAR(MinJun1+23)=TahunKalender,MONTH(MinJun1+23)=6),MinJun1+23,\"\"))","v":"2019-06-18"},{"$f":"IF(DAY(MinJun1)=1,IF(AND(YEAR(MinJun1+17)=TahunKalender,MONTH(MinJun1+17)=6),MinJun1+17,\"\"),IF(AND(YEAR(MinJun1+24)=TahunKalender,MONTH(MinJun1+24)=6),MinJun1+24,\"\"))","v":"2019-06-19"},{"$f":"IF(DAY(MinJun1)=1,IF(AND(YEAR(MinJun1+18)=TahunKalender,MONTH(MinJun1+18)=6),MinJun1+18,\"\"),IF(AND(YEAR(MinJun1+25)=TahunKalender,MONTH(MinJun1+25)=6),MinJun1+25,\"\"))","v":"2019-06-20"},{"$f":"IF(DAY(MinJun1)=1,IF(AND(YEAR(MinJun1+19)=TahunKalender,MONTH(MinJun1+19)=6),MinJun1+19,\"\"),IF(AND(YEAR(MinJun1+26)=TahunKalender,MONTH(MinJun1+26)=6),MinJun1+26,\"\"))","v":"2019-06-21"},{"$f":"IF(DAY(MinJun1)=1,IF(AND(YEAR(MinJun1+20)=TahunKalender,MONTH(MinJun1+20)=6),MinJun1+20,\"\"),IF(AND(YEAR(MinJun1+27)=TahunKalender,MONTH(MinJun1+27)=6),MinJun1+27,\"\"))","v":"2019-06-22"},{"$f":"IF(DAY(MinJun1)=1,IF(AND(YEAR(MinJun1+21)=TahunKalender,MONTH(MinJun1+21)=6),MinJun1+21,\"\"),IF(AND(YEAR(MinJun1+28)=TahunKalender,MONTH(MinJun1+28)=6),MinJun1+28,\"\"))","v":"2019-06-23"}]
[null,null,{"$f":"IF(DAY(MinMei1)=1,IF(AND(YEAR(MinMei1+22)=TahunKalender,MONTH(MinMei1+22)=5),MinMei1+22,\"\"),IF(AND(YEAR(MinMei1+29)=TahunKalender,MONTH(MinMei1+29)=5),MinMei1+29,\"\"))","v":"2019-05-27"},{"$f":"IF(DAY(MinMei1)=1,IF(AND(YEAR(MinMei1+23)=TahunKalender,MONTH(MinMei1+23)=5),MinMei1+23,\"\"),IF(AND(YEAR(MinMei1+30)=TahunKalender,MONTH(MinMei1+30)=5),MinMei1+30,\"\"))","v":"2019-05-28"},{"$f":"IF(DAY(MinMei1)=1,IF(AND(YEAR(MinMei1+24)=TahunKalender,MONTH(MinMei1+24)=5),MinMei1+24,\"\"),IF(AND(YEAR(MinMei1+31)=TahunKalender,MONTH(MinMei1+31)=5),MinMei1+31,\"\"))","v":"2019-05-29"},{"$f":"IF(DAY(MinMei1)=1,IF(AND(YEAR(MinMei1+25)=TahunKalender,MONTH(MinMei1+25)=5),MinMei1+25,\"\"),IF(AND(YEAR(MinMei1+32)=TahunKalender,MONTH(MinMei1+32)=5),MinMei1+32,\"\"))","v":"2019-05-30"},{"$f":"IF(DAY(MinMei1)=1,IF(AND(YEAR(MinMei1+26)=TahunKalender,MONTH(MinMei1+26)=5),MinMei1+26,\"\"),IF(AND(YEAR(MinMei1+33)=TahunKalender,MONTH(MinMei1+33)=5),MinMei1+33,\"\"))","v":"2019-05-31"},{"$f":"IF(DAY(MinMei1)=1,IF(AND(YEAR(MinMei1+27)=TahunKalender,MONTH(MinMei1+27)=5),MinMei1+27,\"\"),IF(AND(YEAR(MinMei1+34)=TahunKalender,MONTH(MinMei1+34)=5),MinMei1+34,\"\"))","v":""},{"$f":"IF(DAY(MinMei1)=1,IF(AND(YEAR(MinMei1+28)=TahunKalender,MONTH(MinMei1+28)=5),MinMei1+28,\"\"),IF(AND(YEAR(MinMei1+35)=TahunKalender,MONTH(MinMei1+35)=5),MinMei1+35,\"\"))","v":""},null,{"$f":"IF(DAY(MinJun1)=1,IF(AND(YEAR(MinJun1+22)=TahunKalender,MONTH(MinJun1+22)=6),MinJun1+22,\"\"),IF(AND(YEAR(MinJun1+29)=TahunKalender,MONTH(MinJun1+29)=6),MinJun1+29,\"\"))","v":"2019-06-24"},{"$f":"IF(DAY(MinJun1)=1,IF(AND(YEAR(MinJun1+23)=TahunKalender,MONTH(MinJun1+23)=6),MinJun1+23,\"\"),IF(AND(YEAR(MinJun1+30)=TahunKalender,MONTH(MinJun1+30)=6),MinJun1+30,\"\"))","v":"2019-06-25"},{"$f":"IF(DAY(MinJun1)=1,IF(AND(YEAR(MinJun1+24)=TahunKalender,MONTH(MinJun1+24)=6),MinJun1+24,\"\"),IF(AND(YEAR(MinJun1+31)=TahunKalender,MONTH(MinJun1+31)=6),MinJun1+31,\"\"))","v":"2019-06-26"},{"$f":"IF(DAY(MinJun1)=1,IF(AND(YEAR(MinJun1+25)=TahunKalender,MONTH(MinJun1+25)=6),MinJun1+25,\"\"),IF(AND(YEAR(MinJun1+32)=TahunKalender,MONTH(MinJun1+32)=6),MinJun1+32,\"\"))","v":"2019-06-27"},{"$f":"IF(DAY(MinJun1)=1,IF(AND(YEAR(MinJun1+26)=TahunKalender,MONTH(MinJun1+26)=6),MinJun1+26,\"\"),IF(AND(YEAR(MinJun1+33)=TahunKalender,MONTH(MinJun1+33)=6),MinJun1+33,\"\"))","v":"2019-06-28"},{"$f":"IF(DAY(MinJun1)=1,IF(AND(YEAR(MinJun1+27)=TahunKalender,MONTH(MinJun1+27)=6),MinJun1+27,\"\"),IF(AND(YEAR(MinJun1+34)=TahunKalender,MONTH(MinJun1+34)=6),MinJun1+34,\"\"))","v":"2019-06-29"},{"$f":"IF(DAY(MinJun1)=1,IF(AND(YEAR(MinJun1+28)=TahunKalender,MONTH(MinJun1+28)=6),MinJun1+28,\"\"),IF(AND(YEAR(MinJun1+35)=TahunKalender,MONTH(MinJun1+35)=6),MinJun1+35,\"\"))","v":"2019-06-30"}]
[null,null,{"$f":"IF(DAY(MinMei1)=1,IF(AND(YEAR(MinMei1+29)=TahunKalender,MONTH(MinMei1+29)=5),MinMei1+29,\"\"),IF(AND(YEAR(MinMei1+36)=TahunKalender,MONTH(MinMei1+36)=5),MinMei1+36,\"\"))","v":""},{"$f":"IF(DAY(MinMei1)=1,IF(AND(YEAR(MinMei1+30)=TahunKalender,MONTH(MinMei1+30)=5),MinMei1+30,\"\"),IF(AND(YEAR(MinMei1+37)=TahunKalender,MONTH(MinMei1+37)=5),MinMei1+37,\"\"))","v":""},{"$f":"IF(DAY(MinMei1)=1,IF(AND(YEAR(MinMei1+31)=TahunKalender,MONTH(MinMei1+31)=5),MinMei1+31,\"\"),IF(AND(YEAR(MinMei1+38)=TahunKalender,MONTH(MinMei1+38)=5),MinMei1+38,\"\"))","v":""},{"$f":"IF(DAY(MinMei1)=1,IF(AND(YEAR(MinMei1+32)=TahunKalender,MONTH(MinMei1+32)=5),MinMei1+32,\"\"),IF(AND(YEAR(MinMei1+39)=TahunKalender,MONTH(MinMei1+39)=5),MinMei1+39,\"\"))","v":""},{"$f":"IF(DAY(MinMei1)=1,IF(AND(YEAR(MinMei1+33)=TahunKalender,MONTH(MinMei1+33)=5),MinMei1+33,\"\"),IF(AND(YEAR(MinMei1+40)=TahunKalender,MONTH(MinMei1+40)=5),MinMei1+40,\"\"))","v":""},{"$f":"IF(DAY(MinMei1)=1,IF(AND(YEAR(MinMei1+34)=TahunKalender,MONTH(MinMei1+34)=5),MinMei1+34,\"\"),IF(AND(YEAR(MinMei1+41)=TahunKalender,MONTH(MinMei1+41)=5),MinMei1+41,\"\"))","v":""},{"$f":"IF(DAY(MinMei1)=1,IF(AND(YEAR(MinMei1+35)=TahunKalender,MONTH(MinMei1+35)=5),MinMei1+35,\"\"),IF(AND(YEAR(MinMei1+42)=TahunKalender,MONTH(MinMei1+42)=5),MinMei1+42,\"\"))","v":""},null,{"$f":"IF(DAY(MinJun1)=1,IF(AND(YEAR(MinJun1+29)=TahunKalender,MONTH(MinJun1+29)=6),MinJun1+29,\"\"),IF(AND(YEAR(MinJun1+36)=TahunKalender,MONTH(MinJun1+36)=6),MinJun1+36,\"\"))","v":""},{"$f":"IF(DAY(MinJun1)=1,IF(AND(YEAR(MinJun1+30)=TahunKalender,MONTH(MinJun1+30)=6),MinJun1+30,\"\"),IF(AND(YEAR(MinJun1+37)=TahunKalender,MONTH(MinJun1+37)=6),MinJun1+37,\"\"))","v":""},{"$f":"IF(DAY(MinJun1)=1,IF(AND(YEAR(MinJun1+31)=TahunKalender,MONTH(MinJun1+31)=6),MinJun1+31,\"\"),IF(AND(YEAR(MinJun1+38)=TahunKalender,MONTH(MinJun1+38)=6),MinJun1+38,\"\"))","v":""},{"$f":"IF(DAY(MinJun1)=1,IF(AND(YEAR(MinJun1+32)=TahunKalender,MONTH(MinJun1+32)=6),MinJun1+32,\"\"),IF(AND(YEAR(MinJun1+39)=TahunKalender,MONTH(MinJun1+39)=6),MinJun1+39,\"\"))","v":""},{"$f":"IF(DAY(MinJun1)=1,IF(AND(YEAR(MinJun1+33)=TahunKalender,MONTH(MinJun1+33)=6),MinJun1+33,\"\"),IF(AND(YEAR(MinJun1+40)=TahunKalender,MONTH(MinJun1+40)=6),MinJun1+40,\"\"))","v":""},{"$f":"IF(DAY(MinJun1)=1,IF(AND(YEAR(MinJun1+34)=TahunKalender,MONTH(MinJun1+34)=6),MinJun1+34,\"\"),IF(AND(YEAR(MinJun1+41)=TahunKalender,MONTH(MinJun1+41)=6),MinJun1+41,\"\"))","v":""},{"$f":"IF(DAY(MinJun1)=1,IF(AND(YEAR(MinJun1+35)=TahunKalender,MONTH(MinJun1+35)=6),MinJun1+35,\"\"),IF(AND(YEAR(MinJun1+42)=TahunKalender,MONTH(MinJun1+42)=6),MinJun1+42,\"\"))","v":""}]
[]
[null,null,"JULI",{"$nulls":7},"AGUSTUS"]
[null,null,"S","S","R","K","J","S","M",null,"S","S","R","K","J","S","M"]
[null,null,{"$f":"IF(DAY(MinJul1)=1,\"\",IF(AND(YEAR(MinJul1+1)=TahunKalender,MONTH(MinJul1+1)=7),MinJul1+1,\"\"))","v":"2019-07-01"},{"$f":"IF(DAY(MinJul1)=1,\"\",IF(AND(YEAR(MinJul1+2)=TahunKalender,MONTH(MinJul1+2)=7),MinJul1+2,\"\"))","v":"2019-07-02"},{"$f":"IF(DAY(MinJul1)=1,\"\",IF(AND(YEAR(MinJul1+3)=TahunKalender,MONTH(MinJul1+3)=7),MinJul1+3,\"\"))","v":"2019-07-03"},{"$f":"IF(DAY(MinJul1)=1,\"\",IF(AND(YEAR(MinJul1+4)=TahunKalender,MONTH(MinJul1+4)=7),MinJul1+4,\"\"))","v":"2019-07-04"},{"$f":"IF(DAY(MinJul1)=1,\"\",IF(AND(YEAR(MinJul1+5)=TahunKalender,MONTH(MinJul1+5)=7),MinJul1+5,\"\"))","v":"2019-07-05"},{"$f":"IF(DAY(MinJul1)=1,\"\",IF(AND(YEAR(MinJul1+6)=TahunKalender,MONTH(MinJul1+6)=7),MinJul1+6,\"\"))","v":"2019-07-06"},{"$f":"IF(DAY(MinJul1)=1,IF(AND(YEAR(MinJul1)=TahunKalender,MONTH(MinJul1)=7),MinJul1,\"\"),IF(AND(YEAR(MinJul1+7)=TahunKalender,MONTH(MinJul1+7)=7),MinJul1+7,\"\"))","v":"2019-07-07"},null,{"$f":"IF(DAY(MinAgu1)=1,\"\",IF(AND(YEAR(MinAgu1+1)=TahunKalender,MONTH(MinAgu1+1)=8),MinAgu1+1,\"\"))","v":""},{"$f":"IF(DAY(MinAgu1)=1,\"\",IF(AND(YEAR(MinAgu1+2)=TahunKalender,MONTH(MinAgu1+2)=8),MinAgu1+2,\"\"))","v":""},{"$f":"IF(DAY(MinAgu1)=1,\"\",IF(AND(YEAR(MinAgu1+3)=TahunKalender,MONTH(MinAgu1+3)=8),MinAgu1+3,\"\"))","v":""},{"$f":"IF(DAY(MinAgu1)=1,\"\",IF(AND(YEAR(MinAgu1+4)=TahunKalender,MONTH(MinAgu1+4)=8),MinAgu1+4,\"\"))","v":"2019-08-01"},{"$f":"IF(DAY(MinAgu1)=1,\"\",IF(AND(YEAR(MinAgu1+5)=TahunKalender,MONTH(MinAgu1+5)=8),MinAgu1+5,\"\"))","v":"2019-08-02"},{"$f":"IF(DAY(MinAgu1)=1,\"\",IF(AND(YEAR(MinAgu1+6)=TahunKalender,MONTH(MinAgu1+6)=8),MinAgu1+6,\"\"))","v":"2019-08-03"},{"$f":"IF(DAY(MinAgu1)=1,IF(AND(YEAR(MinAgu1)=TahunKalender,MONTH(MinAgu1)=8),MinAgu1,\"\"),IF(AND(YEAR(MinAgu1+7)=TahunKalender,MONTH(MinAgu1+7)=8),MinAgu1+7,\"\"))","v":"2019-08-04"}]
[null,null,{"$f":"IF(DAY(MinJul1)=1,IF(AND(YEAR(MinJul1+1)=TahunKalender,MONTH(MinJul1+1)=7),MinJul1+1,\"\"),IF(AND(YEAR(MinJul1+8)=TahunKalender,MONTH(MinJul1+8)=7),MinJul1+8,\"\"))","v":"2019-07-08"},{"$f":"IF(DAY(MinJul1)=1,IF(AND(YEAR(MinJul1+2)=TahunKalender,MONTH(MinJul1+2)=7),MinJul1+2,\"\"),IF(AND(YEAR(MinJul1+9)=TahunKalender,MONTH(MinJul1+9)=7),MinJul1+9,\"\"))","v":"2019-07-09"},{"$f":"IF(DAY(MinJul1)=1,IF(AND(YEAR(MinJul1+3)=TahunKalender,MONTH(MinJul1+3)=7),MinJul1+3,\"\"),IF(AND(YEAR(MinJul1+10)=TahunKalender,MONTH(MinJul1+10)=7),MinJul1+10,\"\"))","v":"2019-07-10"},{"$f":"IF(DAY(MinJul1)=1,IF(AND(YEAR(MinJul1+4)=TahunKalender,MONTH(MinJul1+4)=7),MinJul1+4,\"\"),IF(AND(YEAR(MinJul1+11)=TahunKalender,MONTH(MinJul1+11)=7),MinJul1+11,\"\"))","v":"2019-07-11"},{"$f":"IF(DAY(MinJul1)=1,IF(AND(YEAR(MinJul1+5)=TahunKalender,MONTH(MinJul1+5)=7),MinJul1+5,\"\"),IF(AND(YEAR(MinJul1+12)=TahunKalender,MONTH(MinJul1+12)=7),MinJul1+12,\"\"))","v":"2019-07-12"},{"$f":"IF(DAY(MinJul1)=1,IF(AND(YEAR(MinJul1+6)=TahunKalender,MONTH(MinJul1+6)=7),MinJul1+6,\"\"),IF(AND(YEAR(MinJul1+13)=TahunKalender,MONTH(MinJul1+13)=7),MinJul1+13,\"\"))","v":"2019-07-13"},{"$f":"IF(DAY(MinJul1)=1,IF(AND(YEAR(MinJul1+7)=TahunKalender,MONTH(MinJul1+7)=7),MinJul1+7,\"\"),IF(AND(YEAR(MinJul1+14)=TahunKalender,MONTH(MinJul1+14)=7),MinJul1+14,\"\"))","v":"2019-07-14"},null,{"$f":"IF(DAY(MinAgu1)=1,IF(AND(YEAR(MinAgu1+1)=TahunKalender,MONTH(MinAgu1+1)=8),MinAgu1+1,\"\"),IF(AND(YEAR(MinAgu1+8)=TahunKalender,MONTH(MinAgu1+8)=8),MinAgu1+8,\"\"))","v":"2019-08-05"},{"$f":"IF(DAY(MinAgu1)=1,IF(AND(YEAR(MinAgu1+2)=TahunKalender,MONTH(MinAgu1+2)=8),MinAgu1+2,\"\"),IF(AND(YEAR(MinAgu1+9)=TahunKalender,MONTH(MinAgu1+9)=8),MinAgu1+9,\"\"))","v":"2019-08-06"},{"$f":"IF(DAY(MinAgu1)=1,IF(AND(YEAR(MinAgu1+3)=TahunKalender,MONTH(MinAgu1+3)=8),MinAgu1+3,\"\"),IF(AND(YEAR(MinAgu1+10)=TahunKalender,MONTH(MinAgu1+10)=8),MinAgu1+10,\"\"))","v":"2019-08-07"},{"$f":"IF(DAY(MinAgu1)=1,IF(AND(YEAR(MinAgu1+4)=TahunKalender,MONTH(MinAgu1+4)=8),MinAgu1+4,\"\"),IF(AND(YEAR(MinAgu1+11)=TahunKalender,MONTH(MinAgu1+11)=8),MinAgu1+11,\"\"))","v":"2019-08-08"},{"$f":"IF(DAY(MinAgu1)=1,IF(AND(YEAR(MinAgu1+5)=TahunKalender,MONTH(MinAgu1+5)=8),MinAgu1+5,\"\"),IF(AND(YEAR(MinAgu1+12)=TahunKalender,MONTH(MinAgu1+12)=8),MinAgu1+12,\"\"))","v":"2019-08-09"},{"$f":"IF(DAY(MinAgu1)=1,IF(AND(YEAR(MinAgu1+6)=TahunKalender,MONTH(MinAgu1+6)=8),MinAgu1+6,\"\"),IF(AND(YEAR(MinAgu1+13)=TahunKalender,MONTH(MinAgu1+13)=8),MinAgu1+13,\"\"))","v":"2019-08-10"},{"$f":"IF(DAY(MinAgu1)=1,IF(AND(YEAR(MinAgu1+7)=TahunKalender,MONTH(MinAgu1+7)=8),MinAgu1+7,\"\"),IF(AND(YEAR(MinAgu1+14)=TahunKalender,MONTH(MinAgu1+14)=8),MinAgu1+14,\"\"))","v":"2019-08-11"}]
[null,null,{"$f":"IF(DAY(MinJul1)=1,IF(AND(YEAR(MinJul1+8)=TahunKalender,MONTH(MinJul1+8)=7),MinJul1+8,\"\"),IF(AND(YEAR(MinJul1+15)=TahunKalender,MONTH(MinJul1+15)=7),MinJul1+15,\"\"))","v":"2019-07-15"},{"$f":"IF(DAY(MinJul1)=1,IF(AND(YEAR(MinJul1+9)=TahunKalender,MONTH(MinJul1+9)=7),MinJul1+9,\"\"),IF(AND(YEAR(MinJul1+16)=TahunKalender,MONTH(MinJul1+16)=7),MinJul1+16,\"\"))","v":"2019-07-16"},{"$f":"IF(DAY(MinJul1)=1,IF(AND(YEAR(MinJul1+10)=TahunKalender,MONTH(MinJul1+10)=7),MinJul1+10,\"\"),IF(AND(YEAR(MinJul1+17)=TahunKalender,MONTH(MinJul1+17)=7),MinJul1+17,\"\"))","v":"2019-07-17"},{"$f":"IF(DAY(MinJul1)=1,IF(AND(YEAR(MinJul1+11)=TahunKalender,MONTH(MinJul1+11)=7),MinJul1+11,\"\"),IF(AND(YEAR(MinJul1+18)=TahunKalender,MONTH(MinJul1+18)=7),MinJul1+18,\"\"))","v":"2019-07-18"},{"$f":"IF(DAY(MinJul1)=1,IF(AND(YEAR(MinJul1+12)=TahunKalender,MONTH(MinJul1+12)=7),MinJul1+12,\"\"),IF(AND(YEAR(MinJul1+19)=TahunKalender,MONTH(MinJul1+19)=7),MinJul1+19,\"\"))","v":"2019-07-19"},{"$f":"IF(DAY(MinJul1)=1,IF(AND(YEAR(MinJul1+13)=TahunKalender,MONTH(MinJul1+13)=7),MinJul1+13,\"\"),IF(AND(YEAR(MinJul1+20)=TahunKalender,MONTH(MinJul1+20)=7),MinJul1+20,\"\"))","v":"2019-07-20"},{"$f":"IF(DAY(MinJul1)=1,IF(AND(YEAR(MinJul1+14)=TahunKalender,MONTH(MinJul1+14)=7),MinJul1+14,\"\"),IF(AND(YEAR(MinJul1+21)=TahunKalender,MONTH(MinJul1+21)=7),MinJul1+21,\"\"))","v":"2019-07-21"},null,{"$f":"IF(DAY(MinAgu1)=1,IF(AND(YEAR(MinAgu1+8)=TahunKalender,MONTH(MinAgu1+8)=8),MinAgu1+8,\"\"),IF(AND(YEAR(MinAgu1+15)=TahunKalender,MONTH(MinAgu1+15)=8),MinAgu1+15,\"\"))","v":"2019-08-12"},{"$f":"IF(DAY(MinAgu1)=1,IF(AND(YEAR(MinAgu1+9)=TahunKalender,MONTH(MinAgu1+9)=8),MinAgu1+9,\"\"),IF(AND(YEAR(MinAgu1+16)=TahunKalender,MONTH(MinAgu1+16)=8),MinAgu1+16,\"\"))","v":"2019-08-13"},{"$f":"IF(DAY(MinAgu1)=1,IF(AND(YEAR(MinAgu1+10)=TahunKalender,MONTH(MinAgu1+10)=8),MinAgu1+10,\"\"),IF(AND(YEAR(MinAgu1+17)=TahunKalender,MONTH(MinAgu1+17)=8),MinAgu1+17,\"\"))","v":"2019-08-14"},{"$f":"IF(DAY(MinAgu1)=1,IF(AND(YEAR(MinAgu1+11)=TahunKalender,MONTH(MinAgu1+11)=8),MinAgu1+11,\"\"),IF(AND(YEAR(MinAgu1+18)=TahunKalender,MONTH(MinAgu1+18)=8),MinAgu1+18,\"\"))","v":"2019-08-15"},{"$f":"IF(DAY(MinAgu1)=1,IF(AND(YEAR(MinAgu1+12)=TahunKalender,MONTH(MinAgu1+12)=8),MinAgu1+12,\"\"),IF(AND(YEAR(MinAgu1+19)=TahunKalender,MONTH(MinAgu1+19)=8),MinAgu1+19,\"\"))","v":"2019-08-16"},{"$f":"IF(DAY(MinAgu1)=1,IF(AND(YEAR(MinAgu1+13)=TahunKalender,MONTH(MinAgu1+13)=8),MinAgu1+13,\"\"),IF(AND(YEAR(MinAgu1+20)=TahunKalender,MONTH(MinAgu1+20)=8),MinAgu1+20,\"\"))","v":"2019-08-17"},{"$f":"IF(DAY(MinAgu1)=1,IF(AND(YEAR(MinAgu1+14)=TahunKalender,MONTH(MinAgu1+14)=8),MinAgu1+14,\"\"),IF(AND(YEAR(MinAgu1+21)=TahunKalender,MONTH(MinAgu1+21)=8),MinAgu1+21,\"\"))","v":"2019-08-18"}]
[null,null,{"$f":"IF(DAY(MinJul1)=1,IF(AND(YEAR(MinJul1+15)=TahunKalender,MONTH(MinJul1+15)=7),MinJul1+15,\"\"),IF(AND(YEAR(MinJul1+22)=TahunKalender,MONTH(MinJul1+22)=7),MinJul1+22,\"\"))","v":"2019-07-22"},{"$f":"IF(DAY(MinJul1)=1,IF(AND(YEAR(MinJul1+16)=TahunKalender,MONTH(MinJul1+16)=7),MinJul1+16,\"\"),IF(AND(YEAR(MinJul1+23)=TahunKalender,MONTH(MinJul1+23)=7),MinJul1+23,\"\"))","v":"2019-07-23"},{"$f":"IF(DAY(MinJul1)=1,IF(AND(YEAR(MinJul1+17)=TahunKalender,MONTH(MinJul1+17)=7),MinJul1+17,\"\"),IF(AND(YEAR(MinJul1+24)=TahunKalender,MONTH(MinJul1+24)=7),MinJul1+24,\"\"))","v":"2019-07-24"},{"$f":"IF(DAY(MinJul1)=1,IF(AND(YEAR(MinJul1+18)=TahunKalender,MONTH(MinJul1+18)=7),MinJul1+18,\"\"),IF(AND(YEAR(MinJul1+25)=TahunKalender,MONTH(MinJul1+25)=7),MinJul1+25,\"\"))","v":"2019-07-25"},{"$f":"IF(DAY(MinJul1)=1,IF(AND(YEAR(MinJul1+19)=TahunKalender,MONTH(MinJul1+19)=7),MinJul1+19,\"\"),IF(AND(YEAR(MinJul1+26)=TahunKalender,MONTH(MinJul1+26)=7),MinJul1+26,\"\"))","v":"2019-07-26"},{"$f":"IF(DAY(MinJul1)=1,IF(AND(YEAR(MinJul1+20)=TahunKalender,MONTH(MinJul1+20)=7),MinJul1+20,\"\"),IF(AND(YEAR(MinJul1+27)=TahunKalender,MONTH(MinJul1+27)=7),MinJul1+27,\"\"))","v":"2019-07-27"},{"$f":"IF(DAY(MinJul1)=1,IF(AND(YEAR(MinJul1+21)=TahunKalender,MONTH(MinJul1+21)=7),MinJul1+21,\"\"),IF(AND(YEAR(MinJul1+28)=TahunKalender,MONTH(MinJul1+28)=7),MinJul1+28,\"\"))","v":"2019-07-28"},null,{"$f":"IF(DAY(MinAgu1)=1,IF(AND(YEAR(MinAgu1+15)=TahunKalender,MONTH(MinAgu1+15)=8),MinAgu1+15,\"\"),IF(AND(YEAR(MinAgu1+22)=TahunKalender,MONTH(MinAgu1+22)=8),MinAgu1+22,\"\"))","v":"2019-08-19"},{"$f":"IF(DAY(MinAgu1)=1,IF(AND(YEAR(MinAgu1+16)=TahunKalender,MONTH(MinAgu1+16)=8),MinAgu1+16,\"\"),IF(AND(YEAR(MinAgu1+23)=TahunKalender,MONTH(MinAgu1+23)=8),MinAgu1+23,\"\"))","v":"2019-08-20"},{"$f":"IF(DAY(MinAgu1)=1,IF(AND(YEAR(MinAgu1+17)=TahunKalender,MONTH(MinAgu1+17)=8),MinAgu1+17,\"\"),IF(AND(YEAR(MinAgu1+24)=TahunKalender,MONTH(MinAgu1+24)=8),MinAgu1+24,\"\"))","v":"2019-08-21"},{"$f":"IF(DAY(MinAgu1)=1,IF(AND(YEAR(MinAgu1+18)=TahunKalender,MONTH(MinAgu1+18)=8),MinAgu1+18,\"\"),IF(AND(YEAR(MinAgu1+25)=TahunKalender,MONTH(MinAgu1+25)=8),MinAgu1+25,\"\"))","v":"2019-08-22"},{"$f":"IF(DAY(MinAgu1)=1,IF(AND(YEAR(MinAgu1+19)=TahunKalender,MONTH(MinAgu1+19)=8),MinAgu1+19,\"\"),IF(AND(YEAR(MinAgu1+26)=TahunKalender,MONTH(MinAgu1+26)=8),MinAgu1+26,\"\"))","v":"2019-08-23"},{"$f":"IF(DAY(MinAgu1)=1,IF(AND(YEAR(MinAgu1+20)=TahunKalender,MONTH(MinAgu1+20)=8),MinAgu1+20,\"\"),IF(AND(YEAR(MinAgu1+27)=TahunKalender,MONTH(MinAgu1+27)=8),MinAgu1+27,\"\"))","v":"2019-08-24"},{"$f":"IF(DAY(MinAgu1)=1,IF(AND(YEAR(MinAgu1+21)=TahunKalender,MONTH(MinAgu1+21)=8),MinAgu1+21,\"\"),IF(AND(YEAR(MinAgu1+28)=TahunKalender,MONTH(MinAgu1+28)=8),MinAgu1+28,\"\"))","v":"2019-08-25"}]
[null,null,{"$f":"IF(DAY(MinJul1)=1,IF(AND(YEAR(MinJul1+22)=TahunKalender,MONTH(MinJul1+22)=7),MinJul1+22,\"\"),IF(AND(YEAR(MinJul1+29)=TahunKalender,MONTH(MinJul1+29)=7),MinJul1+29,\"\"))","v":"2019-07-29"},{"$f":"IF(DAY(MinJul1)=1,IF(AND(YEAR(MinJul1+23)=TahunKalender,MONTH(MinJul1+23)=7),MinJul1+23,\"\"),IF(AND(YEAR(MinJul1+30)=TahunKalender,MONTH(MinJul1+30)=7),MinJul1+30,\"\"))","v":"2019-07-30"},{"$f":"IF(DAY(MinJul1)=1,IF(AND(YEAR(MinJul1+24)=TahunKalender,MONTH(MinJul1+24)=7),MinJul1+24,\"\"),IF(AND(YEAR(MinJul1+31)=TahunKalender,MONTH(MinJul1+31)=7),MinJul1+31,\"\"))","v":"2019-07-31"},{"$f":"IF(DAY(MinJul1)=1,IF(AND(YEAR(MinJul1+25)=TahunKalender,MONTH(MinJul1+25)=7),MinJul1+25,\"\"),IF(AND(YEAR(MinJul1+32)=TahunKalender,MONTH(MinJul1+32)=7),MinJul1+32,\"\"))","v":""},{"$f":"IF(DAY(MinJul1)=1,IF(AND(YEAR(MinJul1+26)=TahunKalender,MONTH(MinJul1+26)=7),MinJul1+26,\"\"),IF(AND(YEAR(MinJul1+33)=TahunKalender,MONTH(MinJul1+33)=7),MinJul1+33,\"\"))","v":""},{"$f":"IF(DAY(MinJul1)=1,IF(AND(YEAR(MinJul1+27)=TahunKalender,MONTH(MinJul1+27)=7),MinJul1+27,\"\"),IF(AND(YEAR(MinJul1+34)=TahunKalender,MONTH(MinJul1+34)=7),MinJul1+34,\"\"))","v":""},{"$f":"IF(DAY(MinJul1)=1,IF(AND(YEAR(MinJul1+28)=TahunKalender,MONTH(MinJul1+28)=7),MinJul1+28,\"\"),IF(AND(YEAR(MinJul1+35)=TahunKalender,MONTH(MinJul1+35)=7),MinJul1+35,\"\"))","v":""},null,{"$f":"IF(DAY(MinAgu1)=1,IF(AND(YEAR(MinAgu1+22)=TahunKalender,MONTH(MinAgu1+22)=8),MinAgu1+22,\"\"),IF(AND(YEAR(MinAgu1+29)=TahunKalender,MONTH(MinAgu1+29)=8),MinAgu1+29,\"\"))","v":"2019-08-26"},{"$f":"IF(DAY(MinAgu1)=1,IF(AND(YEAR(MinAgu1+23)=TahunKalender,MONTH(MinAgu1+23)=8),MinAgu1+23,\"\"),IF(AND(YEAR(MinAgu1+30)=TahunKalender,MONTH(MinAgu1+30)=8),MinAgu1+30,\"\"))","v":"2019-08-27"},{"$f":"IF(DAY(MinAgu1)=1,IF(AND(YEAR(MinAgu1+24)=TahunKalender,MONTH(MinAgu1+24)=8),MinAgu1+24,\"\"),IF(AND(YEAR(MinAgu1+31)=TahunKalender,MONTH(MinAgu1+31)=8),MinAgu1+31,\"\"))","v":"2019-08-28"},{"$f":"IF(DAY(MinAgu1)=1,IF(AND(YEAR(MinAgu1+25)=TahunKalender,MONTH(MinAgu1+25)=8),MinAgu1+25,\"\"),IF(AND(YEAR(MinAgu1+32)=TahunKalender,MONTH(MinAgu1+32)=8),MinAgu1+32,\"\"))","v":"2019-08-29"},{"$f":"IF(DAY(MinAgu1)=1,IF(AND(YEAR(MinAgu1+26)=TahunKalender,MONTH(MinAgu1+26)=8),MinAgu1+26,\"\"),IF(AND(YEAR(MinAgu1+33)=TahunKalender,MONTH(MinAgu1+33)=8),MinAgu1+33,\"\"))","v":"2019-08-30"},{"$f":"IF(DAY(MinAgu1)=1,IF(AND(YEAR(MinAgu1+27)=TahunKalender,MONTH(MinAgu1+27)=8),MinAgu1+27,\"\"),IF(AND(YEAR(MinAgu1+34)=TahunKalender,MONTH(MinAgu1+34)=8),MinAgu1+34,\"\"))","v":"2019-08-31"},{"$f":"IF(DAY(MinAgu1)=1,IF(AND(YEAR(MinAgu1+28)=TahunKalender,MONTH(MinAgu1+28)=8),MinAgu1+28,\"\"),IF(AND(YEAR(MinAgu1+35)=TahunKalender,MONTH(MinAgu1+35)=8),MinAgu1+35,\"\"))","v":""}]
[null,null,{"$f":"IF(DAY(MinJul1)=1,IF(AND(YEAR(MinJul1+29)=TahunKalender,MONTH(MinJul1+29)=7),MinJul1+29,\"\"),IF(AND(YEAR(MinJul1+36)=TahunKalender,MONTH(MinJul1+36)=7),MinJul1+36,\"\"))","v":""},{"$f":"IF(DAY(MinJul1)=1,IF(AND(YEAR(MinJul1+30)=TahunKalender,MONTH(MinJul1+30)=7),MinJul1+30,\"\"),IF(AND(YEAR(MinJul1+37)=TahunKalender,MONTH(MinJul1+37)=7),MinJul1+37,\"\"))","v":""},{"$f":"IF(DAY(MinJul1)=1,IF(AND(YEAR(MinJul1+31)=TahunKalender,MONTH(MinJul1+31)=7),MinJul1+31,\"\"),IF(AND(YEAR(MinJul1+38)=TahunKalender,MONTH(MinJul1+38)=7),MinJul1+38,\"\"))","v":""},{"$f":"IF(DAY(MinJul1)=1,IF(AND(YEAR(MinJul1+32)=TahunKalender,MONTH(MinJul1+32)=7),MinJul1+32,\"\"),IF(AND(YEAR(MinJul1+39)=TahunKalender,MONTH(MinJul1+39)=7),MinJul1+39,\"\"))","v":""},{"$f":"IF(DAY(MinJul1)=1,IF(AND(YEAR(MinJul1+33)=TahunKalender,MONTH(MinJul1+33)=7),MinJul1+33,\"\"),IF(AND(YEAR(MinJul1+40)=TahunKalender,MONTH(MinJul1+40)=7),MinJul1+40,\"\"))","v":""},{"$f":"IF(DAY(MinJul1)=1,IF(AND(YEAR(MinJul1+34)=TahunKalender,MONTH(MinJul1+34)=7),MinJul1+34,\"\"),IF(AND(YEAR(MinJul1+41)=TahunKalender,MONTH(MinJul1+41)=7),MinJul1+41,\"\"))","v":""},{"$f":"IF(DAY(MinJul1)=1,IF(AND(YEAR(MinJul1+35)=TahunKalender,MONTH(MinJul1+35)=7),MinJul1+35,\"\"),IF(AND(YEAR(MinJul1+42)=TahunKalender,MONTH(MinJul1+42)=7),MinJul1+42,\"\"))","v":""},null,{"$f":"IF(DAY(MinAgu1)=1,IF(AND(YEAR(MinAgu1+29)=TahunKalender,MONTH(MinAgu1+29)=8),MinAgu1+29,\"\"),IF(AND(YEAR(MinAgu1+36)=TahunKalender,MONTH(MinAgu1+36)=8),MinAgu1+36,\"\"))","v":""},{"$f":"IF(DAY(MinAgu1)=1,IF(AND(YEAR(MinAgu1+30)=TahunKalender,MONTH(MinAgu1+30)=8),MinAgu1+30,\"\"),IF(AND(YEAR(MinAgu1+37)=TahunKalender,MONTH(MinAgu1+37)=8),MinAgu1+37,\"\"))","v":""},{"$f":"IF(DAY(MinAgu1)=1,IF(AND(YEAR(MinAgu1+31)=TahunKalender,MONTH(MinAgu1+31)=8),MinAgu1+31,\"\"),IF(AND(YEAR(MinAgu1+38)=TahunKalender,MONTH(MinAgu1+38)=8),MinAgu1+38,\"\"))","v":""},{"$f":"IF(DAY(MinAgu1)=1,IF(AND(YEAR(MinAgu1+32)=TahunKalender,MONTH(MinAgu1+32)=8),MinAgu1+32,\"\"),IF(AND(YEAR(MinAgu1+39)=TahunKalender,MONTH(MinAgu1+39)=8),MinAgu1+39,\"\"))","v":""},{"$f":"IF(DAY(MinAgu1)=1,IF(AND(YEAR(MinAgu1+33)=TahunKalender,MONTH(MinAgu1+33)=8),MinAgu1+33,\"\"),IF(AND(YEAR(MinAgu1+40)=TahunKalender,MONTH(MinAgu1+40)=8),MinAgu1+40,\"\"))","v":""},{"$f":"IF(DAY(MinAgu1)=1,IF(AND(YEAR(MinAgu1+34)=TahunKalender,MONTH(MinAgu1+34)=8),MinAgu1+34,\"\"),IF(AND(YEAR(MinAgu1+41)=TahunKalender,MONTH(MinAgu1+41)=8),MinAgu1+41,\"\"))","v":""},{"$f":"IF(DAY(MinAgu1)=1,IF(AND(YEAR(MinAgu1+35)=TahunKalender,MONTH(MinAgu1+35)=8),MinAgu1+35,\"\"),IF(AND(YEAR(MinAgu1+42)=TahunKalender,MONTH(MinAgu1+42)=8),MinAgu1+42,\"\"))","v":""}]
[]
[null,null,"SEPTEMBER",{"$nulls":7},"OKTOBER"]
[null,null,"S","S","R","K","J","S","M",null,"S","S","R","K","J","S","M"]
[null,null,{"$f":"IF(DAY(MinSep1)=1,\"\",IF(AND(YEAR(MinSep1+1)=TahunKalender,MONTH(MinSep1+1)=9),MinSep1+1,\"\"))","v":""},{"$f":"IF(DAY(MinSep1)=1,\"\",IF(AND(YEAR(MinSep1+2)=TahunKalender,MONTH(MinSep1+2)=9),MinSep1+2,\"\"))","v":""},{"$f":"IF(DAY(MinSep1)=1,\"\",IF(AND(YEAR(MinSep1+3)=TahunKalender,MONTH(MinSep1+3)=9),MinSep1+3,\"\"))","v":""},{"$f":"IF(DAY(MinSep1)=1,\"\",IF(AND(YEAR(MinSep1+4)=TahunKalender,MONTH(MinSep1+4)=9),MinSep1+4,\"\"))","v":""},{"$f":"IF(DAY(MinSep1)=1,\"\",IF(AND(YEAR(MinSep1+5)=TahunKalender,MONTH(MinSep1+5)=9),MinSep1+5,\"\"))","v":""},{"$f":"IF(DAY(MinSep1)=1,\"\",IF(AND(YEAR(MinSep1+6)=TahunKalender,MONTH(MinSep1+6)=9),MinSep1+6,\"\"))","v":""},{"$f":"IF(DAY(MinSep1)=1,IF(AND(YEAR(MinSep1)=TahunKalender,MONTH(MinSep1)=9),MinSep1,\"\"),IF(AND(YEAR(MinSep1+7)=TahunKalender,MONTH(MinSep1+7)=9),MinSep1+7,\"\"))","v":"2019-09-01"},null,{"$f":"IF(DAY(MinOkt1)=1,\"\",IF(AND(YEAR(MinOkt1+1)=TahunKalender,MONTH(MinOkt1+1)=10),MinOkt1+1,\"\"))","v":""},{"$f":"IF(DAY(MinOkt1)=1,\"\",IF(AND(YEAR(MinOkt1+2)=TahunKalender,MONTH(MinOkt1+2)=10),MinOkt1+2,\"\"))","v":"2019-10-01"},{"$f":"IF(DAY(MinOkt1)=1,\"\",IF(AND(YEAR(MinOkt1+3)=TahunKalender,MONTH(MinOkt1+3)=10),MinOkt1+3,\"\"))","v":"2019-10-02"},{"$f":"IF(DAY(MinOkt1)=1,\"\",IF(AND(YEAR(MinOkt1+4)=TahunKalender,MONTH(MinOkt1+4)=10),MinOkt1+4,\"\"))","v":"2019-10-03"},{"$f":"IF(DAY(MinOkt1)=1,\"\",IF(AND(YEAR(MinOkt1+5)=TahunKalender,MONTH(MinOkt1+5)=10),MinOkt1+5,\"\"))","v":"2019-10-04"},{"$f":"IF(DAY(MinOkt1)=1,\"\",IF(AND(YEAR(MinOkt1+6)=TahunKalender,MONTH(MinOkt1+6)=10),MinOkt1+6,\"\"))","v":"2019-10-05"},{"$f":"IF(DAY(MinOkt1)=1,IF(AND(YEAR(MinOkt1)=TahunKalender,MONTH(MinOkt1)=10),MinOkt1,\"\"),IF(AND(YEAR(MinOkt1+7)=TahunKalender,MONTH(MinOkt1+7)=10),MinOkt1+7,\"\"))","v":"2019-10-06"}]
[null,null,{"$f":"IF(DAY(MinSep1)=1,IF(AND(YEAR(MinSep1+1)=TahunKalender,MONTH(MinSep1+1)=9),MinSep1+1,\"\"),IF(AND(YEAR(MinSep1+8)=TahunKalender,MONTH(MinSep1+8)=9),MinSep1+8,\"\"))","v":"2019-09-02"},{"$f":"IF(DAY(MinSep1)=1,IF(AND(YEAR(MinSep1+2)=TahunKalender,MONTH(MinSep1+2)=9),MinSep1+2,\"\"),IF(AND(YEAR(MinSep1+9)=TahunKalender,MONTH(MinSep1+9)=9),MinSep1+9,\"\"))","v":"2019-09-03"},{"$f":"IF(DAY(MinSep1)=1,IF(AND(YEAR(MinSep1+3)=TahunKalender,MONTH(MinSep1+3)=9),MinSep1+3,\"\"),IF(AND(YEAR(MinSep1+10)=TahunKalender,MONTH(MinSep1+10)=9),MinSep1+10,\"\"))","v":"2019-09-04"},{"$f":"IF(DAY(MinSep1)=1,IF(AND(YEAR(MinSep1+4)=TahunKalender,MONTH(MinSep1+4)=9),MinSep1+4,\"\"),IF(AND(YEAR(MinSep1+11)=TahunKalender,MONTH(MinSep1+11)=9),MinSep1+11,\"\"))","v":"2019-09-05"},{"$f":"IF(DAY(MinSep1)=1,IF(AND(YEAR(MinSep1+5)=TahunKalender,MONTH(MinSep1+5)=9),MinSep1+5,\"\"),IF(AND(YEAR(MinSep1+12)=TahunKalender,MONTH(MinSep1+12)=9),MinSep1+12,\"\"))","v":"2019-09-06"},{"$f":"IF(DAY(MinSep1)=1,IF(AND(YEAR(MinSep1+6)=TahunKalender,MONTH(MinSep1+6)=9),MinSep1+6,\"\"),IF(AND(YEAR(MinSep1+13)=TahunKalender,MONTH(MinSep1+13)=9),MinSep1+13,\"\"))","v":"2019-09-07"},{"$f":"IF(DAY(MinSep1)=1,IF(AND(YEAR(MinSep1+7)=TahunKalender,MONTH(MinSep1+7)=9),MinSep1+7,\"\"),IF(AND(YEAR(MinSep1+14)=TahunKalender,MONTH(MinSep1+14)=9),MinSep1+14,\"\"))","v":"2019-09-08"},null,{"$f":"IF(DAY(MinOkt1)=1,IF(AND(YEAR(MinOkt1+1)=TahunKalender,MONTH(MinOkt1+1)=10),MinOkt1+1,\"\"),IF(AND(YEAR(MinOkt1+8)=TahunKalender,MONTH(MinOkt1+8)=10),MinOkt1+8,\"\"))","v":"2019-10-07"},{"$f":"IF(DAY(MinOkt1)=1,IF(AND(YEAR(MinOkt1+2)=TahunKalender,MONTH(MinOkt1+2)=10),MinOkt1+2,\"\"),IF(AND(YEAR(MinOkt1+9)=TahunKalender,MONTH(MinOkt1+9)=10),MinOkt1+9,\"\"))","v":"2019-10-08"},{"$f":"IF(DAY(MinOkt1)=1,IF(AND(YEAR(MinOkt1+3)=TahunKalender,MONTH(MinOkt1+3)=10),MinOkt1+3,\"\"),IF(AND(YEAR(MinOkt1+10)=TahunKalender,MONTH(MinOkt1+10)=10),MinOkt1+10,\"\"))","v":"2019-10-09"},{"$f":"IF(DAY(MinOkt1)=1,IF(AND(YEAR(MinOkt1+4)=TahunKalender,MONTH(MinOkt1+4)=10),MinOkt1+4,\"\"),IF(AND(YEAR(MinOkt1+11)=TahunKalender,MONTH(MinOkt1+11)=10),MinOkt1+11,\"\"))","v":"2019-10-10"},{"$f":"IF(DAY(MinOkt1)=1,IF(AND(YEAR(MinOkt1+5)=TahunKalender,MONTH(MinOkt1+5)=10),MinOkt1+5,\"\"),IF(AND(YEAR(MinOkt1+12)=TahunKalender,MONTH(MinOkt1+12)=10),MinOkt1+12,\"\"))","v":"2019-10-11"},{"$f":"IF(DAY(MinOkt1)=1,IF(AND(YEAR(MinOkt1+6)=TahunKalender,MONTH(MinOkt1+6)=10),MinOkt1+6,\"\"),IF(AND(YEAR(MinOkt1+13)=TahunKalender,MONTH(MinOkt1+13)=10),MinOkt1+13,\"\"))","v":"2019-10-12"},{"$f":"IF(DAY(MinOkt1)=1,IF(AND(YEAR(MinOkt1+7)=TahunKalender,MONTH(MinOkt1+7)=10),MinOkt1+7,\"\"),IF(AND(YEAR(MinOkt1+14)=TahunKalender,MONTH(MinOkt1+14)=10),MinOkt1+14,\"\"))","v":"2019-10-13"}]
[null,null,{"$f":"IF(DAY(MinSep1)=1,IF(AND(YEAR(MinSep1+8)=TahunKalender,MONTH(MinSep1+8)=9),MinSep1+8,\"\"),IF(AND(YEAR(MinSep1+15)=TahunKalender,MONTH(MinSep1+15)=9),MinSep1+15,\"\"))","v":"2019-09-09"},{"$f":"IF(DAY(MinSep1)=1,IF(AND(YEAR(MinSep1+9)=TahunKalender,MONTH(MinSep1+9)=9),MinSep1+9,\"\"),IF(AND(YEAR(MinSep1+16)=TahunKalender,MONTH(MinSep1+16)=9),MinSep1+16,\"\"))","v":"2019-09-10"},{"$f":"IF(DAY(MinSep1)=1,IF(AND(YEAR(MinSep1+10)=TahunKalender,MONTH(MinSep1+10)=9),MinSep1+10,\"\"),IF(AND(YEAR(MinSep1+17)=TahunKalender,MONTH(MinSep1+17)=9),MinSep1+17,\"\"))","v":"2019-09-11"},{"$f":"IF(DAY(MinSep1)=1,IF(AND(YEAR(MinSep1+11)=TahunKalender,MONTH(MinSep1+11)=9),MinSep1+11,\"\"),IF(AND(YEAR(MinSep1+18)=TahunKalender,MONTH(MinSep1+18)=9),MinSep1+18,\"\"))","v":"2019-09-12"},{"$f":"IF(DAY(MinSep1)=1,IF(AND(YEAR(MinSep1+12)=TahunKalender,MONTH(MinSep1+12)=9),MinSep1+12,\"\"),IF(AND(YEAR(MinSep1+19)=TahunKalender,MONTH(MinSep1+19)=9),MinSep1+19,\"\"))","v":"2019-09-13"},{"$f":"IF(DAY(MinSep1)=1,IF(AND(YEAR(MinSep1+13)=TahunKalender,MONTH(MinSep1+13)=9),MinSep1+13,\"\"),IF(AND(YEAR(MinSep1+20)=TahunKalender,MONTH(MinSep1+20)=9),MinSep1+20,\"\"))","v":"2019-09-14"},{"$f":"IF(DAY(MinSep1)=1,IF(AND(YEAR(MinSep1+14)=TahunKalender,MONTH(MinSep1+14)=9),MinSep1+14,\"\"),IF(AND(YEAR(MinSep1+21)=TahunKalender,MONTH(MinSep1+21)=9),MinSep1+21,\"\"))","v":"2019-09-15"},null,{"$f":"IF(DAY(MinOkt1)=1,IF(AND(YEAR(MinOkt1+8)=TahunKalender,MONTH(MinOkt1+8)=10),MinOkt1+8,\"\"),IF(AND(YEAR(MinOkt1+15)=TahunKalender,MONTH(MinOkt1+15)=10),MinOkt1+15,\"\"))","v":"2019-10-14"},{"$f":"IF(DAY(MinOkt1)=1,IF(AND(YEAR(MinOkt1+9)=TahunKalender,MONTH(MinOkt1+9)=10),MinOkt1+9,\"\"),IF(AND(YEAR(MinOkt1+16)=TahunKalender,MONTH(MinOkt1+16)=10),MinOkt1+16,\"\"))","v":"2019-10-15"},{"$f":"IF(DAY(MinOkt1)=1,IF(AND(YEAR(MinOkt1+10)=TahunKalender,MONTH(MinOkt1+10)=10),MinOkt1+10,\"\"),IF(AND(YEAR(MinOkt1+17)=TahunKalender,MONTH(MinOkt1+17)=10),MinOkt1+17,\"\"))","v":"2019-10-16"},{"$f":"IF(DAY(MinOkt1)=1,IF(AND(YEAR(MinOkt1+11)=TahunKalender,MONTH(MinOkt1+11)=10),MinOkt1+11,\"\"),IF(AND(YEAR(MinOkt1+18)=TahunKalender,MONTH(MinOkt1+18)=10),MinOkt1+18,\"\"))","v":"2019-10-17"},{"$f":"IF(DAY(MinOkt1)=1,IF(AND(YEAR(MinOkt1+12)=TahunKalender,MONTH(MinOkt1+12)=10),MinOkt1+12,\"\"),IF(AND(YEAR(MinOkt1+19)=TahunKalender,MONTH(MinOkt1+19)=10),MinOkt1+19,\"\"))","v":"2019-10-18"},{"$f":"IF(DAY(MinOkt1)=1,IF(AND(YEAR(MinOkt1+13)=TahunKalender,MONTH(MinOkt1+13)=10),MinOkt1+13,\"\"),IF(AND(YEAR(MinOkt1+20)=TahunKalender,MONTH(MinOkt1+20)=10),MinOkt1+20,\"\"))","v":"2019-10-19"},{"$f":"IF(DAY(MinOkt1)=1,IF(AND(YEAR(MinOkt1+14)=TahunKalender,MONTH(MinOkt1+14)=10),MinOkt1+14,\"\"),IF(AND(YEAR(MinOkt1+21)=TahunKalender,MONTH(MinOkt1+21)=10),MinOkt1+21,\"\"))","v":"2019-10-20"}]
[null,null,{"$f":"IF(DAY(MinSep1)=1,IF(AND(YEAR(MinSep1+15)=TahunKalender,MONTH(MinSep1+15)=9),MinSep1+15,\"\"),IF(AND(YEAR(MinSep1+22)=TahunKalender,MONTH(MinSep1+22)=9),MinSep1+22,\"\"))","v":"2019-09-16"},{"$f":"IF(DAY(MinSep1)=1,IF(AND(YEAR(MinSep1+16)=TahunKalender,MONTH(MinSep1+16)=9),MinSep1+16,\"\"),IF(AND(YEAR(MinSep1+23)=TahunKalender,MONTH(MinSep1+23)=9),MinSep1+23,\"\"))","v":"2019-09-17"},{"$f":"IF(DAY(MinSep1)=1,IF(AND(YEAR(MinSep1+17)=TahunKalender,MONTH(MinSep1+17)=9),MinSep1+17,\"\"),IF(AND(YEAR(MinSep1+24)=TahunKalender,MONTH(MinSep1+24)=9),MinSep1+24,\"\"))","v":"2019-09-18"},{"$f":"IF(DAY(MinSep1)=1,IF(AND(YEAR(MinSep1+18)=TahunKalender,MONTH(MinSep1+18)=9),MinSep1+18,\"\"),IF(AND(YEAR(MinSep1+25)=TahunKalender,MONTH(MinSep1+25)=9),MinSep1+25,\"\"))","v":"2019-09-19"},{"$f":"IF(DAY(MinSep1)=1,IF(AND(YEAR(MinSep1+19)=TahunKalender,MONTH(MinSep1+19)=9),MinSep1+19,\"\"),IF(AND(YEAR(MinSep1+26)=TahunKalender,MONTH(MinSep1+26)=9),MinSep1+26,\"\"))","v":"2019-09-20"},{"$f":"IF(DAY(MinSep1)=1,IF(AND(YEAR(MinSep1+20)=TahunKalender,MONTH(MinSep1+20)=9),MinSep1+20,\"\"),IF(AND(YEAR(MinSep1+27)=TahunKalender,MONTH(MinSep1+27)=9),MinSep1+27,\"\"))","v":"2019-09-21"},{"$f":"IF(DAY(MinSep1)=1,IF(AND(YEAR(MinSep1+21)=TahunKalender,MONTH(MinSep1+21)=9),MinSep1+21,\"\"),IF(AND(YEAR(MinSep1+28)=TahunKalender,MONTH(MinSep1+28)=9),MinSep1+28,\"\"))","v":"2019-09-22"},null,{"$f":"IF(DAY(MinOkt1)=1,IF(AND(YEAR(MinOkt1+15)=TahunKalender,MONTH(MinOkt1+15)=10),MinOkt1+15,\"\"),IF(AND(YEAR(MinOkt1+22)=TahunKalender,MONTH(MinOkt1+22)=10),MinOkt1+22,\"\"))","v":"2019-10-21"},{"$f":"IF(DAY(MinOkt1)=1,IF(AND(YEAR(MinOkt1+16)=TahunKalender,MONTH(MinOkt1+16)=10),MinOkt1+16,\"\"),IF(AND(YEAR(MinOkt1+23)=TahunKalender,MONTH(MinOkt1+23)=10),MinOkt1+23,\"\"))","v":"2019-10-22"},{"$f":"IF(DAY(MinOkt1)=1,IF(AND(YEAR(MinOkt1+17)=TahunKalender,MONTH(MinOkt1+17)=10),MinOkt1+17,\"\"),IF(AND(YEAR(MinOkt1+24)=TahunKalender,MONTH(MinOkt1+24)=10),MinOkt1+24,\"\"))","v":"2019-10-23"},{"$f":"IF(DAY(MinOkt1)=1,IF(AND(YEAR(MinOkt1+18)=TahunKalender,MONTH(MinOkt1+18)=10),MinOkt1+18,\"\"),IF(AND(YEAR(MinOkt1+25)=TahunKalender,MONTH(MinOkt1+25)=10),MinOkt1+25,\"\"))","v":"2019-10-24"},{"$f":"IF(DAY(MinOkt1)=1,IF(AND(YEAR(MinOkt1+19)=TahunKalender,MONTH(MinOkt1+19)=10),MinOkt1+19,\"\"),IF(AND(YEAR(MinOkt1+26)=TahunKalender,MONTH(MinOkt1+26)=10),MinOkt1+26,\"\"))","v":"2019-10-25"},{"$f":"IF(DAY(MinOkt1)=1,IF(AND(YEAR(MinOkt1+20)=TahunKalender,MONTH(MinOkt1+20)=10),MinOkt1+20,\"\"),IF(AND(YEAR(MinOkt1+27)=TahunKalender,MONTH(MinOkt1+27)=10),MinOkt1+27,\"\"))","v":"2019-10-26"},{"$f":"IF(DAY(MinOkt1)=1,IF(AND(YEAR(MinOkt1+21)=TahunKalender,MONTH(MinOkt1+21)=10),MinOkt1+21,\"\"),IF(AND(YEAR(MinOkt1+28)=TahunKalender,MONTH(MinOkt1+28)=10),MinOkt1+28,\"\"))","v":"2019-10-27"},{"$nulls":3},"123 Green Drive"]
[null,null,{"$f":"IF(DAY(MinSep1)=1,IF(AND(YEAR(MinSep1+22)=TahunKalender,MONTH(MinSep1+22)=9),MinSep1+22,\"\"),IF(AND(YEAR(MinSep1+29)=TahunKalender,MONTH(MinSep1+29)=9),MinSep1+29,\"\"))","v":"2019-09-23"},{"$f":"IF(DAY(MinSep1)=1,IF(AND(YEAR(MinSep1+23)=TahunKalender,MONTH(MinSep1+23)=9),MinSep1+23,\"\"),IF(AND(YEAR(MinSep1+30)=TahunKalender,MONTH(MinSep1+30)=9),MinSep1+30,\"\"))","v":"2019-09-24"},{"$f":"IF(DAY(MinSep1)=1,IF(AND(YEAR(MinSep1+24)=TahunKalender,MONTH(MinSep1+24)=9),MinSep1+24,\"\"),IF(AND(YEAR(MinSep1+31)=TahunKalender,MONTH(MinSep1+31)=9),MinSep1+31,\"\"))","v":"2019-09-25"},{"$f":"IF(DAY(MinSep1)=1,IF(AND(YEAR(MinSep1+25)=TahunKalender,MONTH(MinSep1+25)=9),MinSep1+25,\"\"),IF(AND(YEAR(MinSep1+32)=TahunKalender,MONTH(MinSep1+32)=9),MinSep1+32,\"\"))","v":"2019-09-26"},{"$f":"IF(DAY(MinSep1)=1,IF(AND(YEAR(MinSep1+26)=TahunKalender,MONTH(MinSep1+26)=9),MinSep1+26,\"\"),IF(AND(YEAR(MinSep1+33)=TahunKalender,MONTH(MinSep1+33)=9),MinSep1+33,\"\"))","v":"2019-09-27"},{"$f":"IF(DAY(MinSep1)=1,IF(AND(YEAR(MinSep1+27)=TahunKalender,MONTH(MinSep1+27)=9),MinSep1+27,\"\"),IF(AND(YEAR(MinSep1+34)=TahunKalender,MONTH(MinSep1+34)=9),MinSep1+34,\"\"))","v":"2019-09-28"},{"$f":"IF(DAY(MinSep1)=1,IF(AND(YEAR(MinSep1+28)=TahunKalender,MONTH(MinSep1+28)=9),MinSep1+28,\"\"),IF(AND(YEAR(MinSep1+35)=TahunKalender,MONTH(MinSep1+35)=9),MinSep1+35,\"\"))","v":"2019-09-29"},null,{"$f":"IF(DAY(MinOkt1)=1,IF(AND(YEAR(MinOkt1+22)=TahunKalender,MONTH(MinOkt1+22)=10),MinOkt1+22,\"\"),IF(AND(YEAR(MinOkt1+29)=TahunKalender,MONTH(MinOkt1+29)=10),MinOkt1+29,\"\"))","v":"2019-10-28"},{"$f":"IF(DAY(MinOkt1)=1,IF(AND(YEAR(MinOkt1+23)=TahunKalender,MONTH(MinOkt1+23)=10),MinOkt1+23,\"\"),IF(AND(YEAR(MinOkt1+30)=TahunKalender,MONTH(MinOkt1+30)=10),MinOkt1+30,\"\"))","v":"2019-10-29"},{"$f":"IF(DAY(MinOkt1)=1,IF(AND(YEAR(MinOkt1+24)=TahunKalender,MONTH(MinOkt1+24)=10),MinOkt1+24,\"\"),IF(AND(YEAR(MinOkt1+31)=TahunKalender,MONTH(MinOkt1+31)=10),MinOkt1+31,\"\"))","v":"2019-10-30"},{"$f":"IF(DAY(MinOkt1)=1,IF(AND(YEAR(MinOkt1+25)=TahunKalender,MONTH(MinOkt1+25)=10),MinOkt1+25,\"\"),IF(AND(YEAR(MinOkt1+32)=TahunKalender,MONTH(MinOkt1+32)=10),MinOkt1+32,\"\"))","v":"2019-10-31"},{"$f":"IF(DAY(MinOkt1)=1,IF(AND(YEAR(MinOkt1+26)=TahunKalender,MONTH(MinOkt1+26)=10),MinOkt1+26,\"\"),IF(AND(YEAR(MinOkt1+33)=TahunKalender,MONTH(MinOkt1+33)=10),MinOkt1+33,\"\"))","v":""},{"$f":"IF(DAY(MinOkt1)=1,IF(AND(YEAR(MinOkt1+27)=TahunKalender,MONTH(MinOkt1+27)=10),MinOkt1+27,\"\"),IF(AND(YEAR(MinOkt1+34)=TahunKalender,MONTH(MinOkt1+34)=10),MinOkt1+34,\"\"))","v":""},{"$f":"IF(DAY(MinOkt1)=1,IF(AND(YEAR(MinOkt1+28)=TahunKalender,MONTH(MinOkt1+28)=10),MinOkt1+28,\"\"),IF(AND(YEAR(MinOkt1+35)=TahunKalender,MONTH(MinOkt1+35)=10),MinOkt1+35,\"\"))","v":""},{"$nulls":3},"Springfield, NY 76543"]
[null,null,{"$f":"IF(DAY(MinSep1)=1,IF(AND(YEAR(MinSep1+29)=TahunKalender,MONTH(MinSep1+29)=9),MinSep1+29,\"\"),IF(AND(YEAR(MinSep1+36)=TahunKalender,MONTH(MinSep1+36)=9),MinSep1+36,\"\"))","v":"2019-09-30"},{"$f":"IF(DAY(MinSep1)=1,IF(AND(YEAR(MinSep1+30)=TahunKalender,MONTH(MinSep1+30)=9),MinSep1+30,\"\"),IF(AND(YEAR(MinSep1+37)=TahunKalender,MONTH(MinSep1+37)=9),MinSep1+37,\"\"))","v":""},{"$f":"IF(DAY(MinSep1)=1,IF(AND(YEAR(MinSep1+31)=TahunKalender,MONTH(MinSep1+31)=9),MinSep1+31,\"\"),IF(AND(YEAR(MinSep1+38)=TahunKalender,MONTH(MinSep1+38)=9),MinSep1+38,\"\"))","v":""},{"$f":"IF(DAY(MinSep1)=1,IF(AND(YEAR(MinSep1+32)=TahunKalender,MONTH(MinSep1+32)=9),MinSep1+32,\"\"),IF(AND(YEAR(MinSep1+39)=TahunKalender,MONTH(MinSep1+39)=9),MinSep1+39,\"\"))","v":""},{"$f":"IF(DAY(MinSep1)=1,IF(AND(YEAR(MinSep1+33)=TahunKalender,MONTH(MinSep1+33)=9),MinSep1+33,\"\"),IF(AND(YEAR(MinSep1+40)=TahunKalender,MONTH(MinSep1+40)=9),MinSep1+40,\"\"))","v":""},{"$f":"IF(DAY(MinSep1)=1,IF(AND(YEAR(MinSep1+34)=TahunKalender,MONTH(MinSep1+34)=9),MinSep1+34,\"\"),IF(AND(YEAR(MinSep1+41)=TahunKalender,MONTH(MinSep1+41)=9),MinSep1+41,\"\"))","v":""},{"$f":"IF(DAY(MinSep1)=1,IF(AND(YEAR(MinSep1+35)=TahunKalender,MONTH(MinSep1+35)=9),MinSep1+35,\"\"),IF(AND(YEAR(MinSep1+42)=TahunKalender,MONTH(MinSep1+42)=9),MinSep1+42,\"\"))","v":""},null,{"$f":"IF(DAY(MinOkt1)=1,IF(AND(YEAR(MinOkt1+29)=TahunKalender,MONTH(MinOkt1+29)=10),MinOkt1+29,\"\"),IF(AND(YEAR(MinOkt1+36)=TahunKalender,MONTH(MinOkt1+36)=10),MinOkt1+36,\"\"))","v":""},{"$f":"IF(DAY(MinOkt1)=1,IF(AND(YEAR(MinOkt1+30)=TahunKalender,MONTH(MinOkt1+30)=10),MinOkt1+30,\"\"),IF(AND(YEAR(MinOkt1+37)=TahunKalender,MONTH(MinOkt1+37)=10),MinOkt1+37,\"\"))","v":""},{"$f":"IF(DAY(MinOkt1)=1,IF(AND(YEAR(MinOkt1+31)=TahunKalender,MONTH(MinOkt1+31)=10),MinOkt1+31,\"\"),IF(AND(YEAR(MinOkt1+38)=TahunKalender,MONTH(MinOkt1+38)=10),MinOkt1+38,\"\"))","v":""},{"$f":"IF(DAY(MinOkt1)=1,IF(AND(YEAR(MinOkt1+32)=TahunKalender,MONTH(MinOkt1+32)=10),MinOkt1+32,\"\"),IF(AND(YEAR(MinOkt1+39)=TahunKalender,MONTH(MinOkt1+39)=10),MinOkt1+39,\"\"))","v":""},{"$f":"IF(DAY(MinOkt1)=1,IF(AND(YEAR(MinOkt1+33)=TahunKalender,MONTH(MinOkt1+33)=10),MinOkt1+33,\"\"),IF(AND(YEAR(MinOkt1+40)=TahunKalender,MONTH(MinOkt1+40)=10),MinOkt1+40,\"\"))","v":""},{"$f":"IF(DAY(MinOkt1)=1,IF(AND(YEAR(MinOkt1+34)=TahunKalender,MONTH(MinOkt1+34)=10),MinOkt1+34,\"\"),IF(AND(YEAR(MinOkt1+41)=TahunKalender,MONTH(MinOkt1+41)=10),MinOkt1+41,\"\"))","v":""},{"$f":"IF(DAY(MinOkt1)=1,IF(AND(YEAR(MinOkt1+35)=TahunKalender,MONTH(MinOkt1+35)=10),MinOkt1+35,\"\"),IF(AND(YEAR(MinOkt1+42)=TahunKalender,MONTH(MinOkt1+42)=10),MinOkt1+42,\"\"))","v":""}]
[{"$nulls":20},"456.555.0123"]
[null,null,"NOVEMBER",{"$nulls":7},"DESEMBER",{"$nulls":9},"info@contoso.com"]
[null,null,"S","S","R","K","J","S","M",null,"S","S","R","K","J","S","M",{"$nulls":3},"www.contoso.com"]
[null,null,{"$f":"IF(DAY(MinNov1)=1,\"\",IF(AND(YEAR(MinNov1+1)=TahunKalender,MONTH(MinNov1+1)=11),MinNov1+1,\"\"))","v":""},{"$f":"IF(DAY(MinNov1)=1,\"\",IF(AND(YEAR(MinNov1+2)=TahunKalender,MONTH(MinNov1+2)=11),MinNov1+2,\"\"))","v":""},{"$f":"IF(DAY(MinNov1)=1,\"\",IF(AND(YEAR(MinNov1+3)=TahunKalender,MONTH(MinNov1+3)=11),MinNov1+3,\"\"))","v":""},{"$f":"IF(DAY(MinNov1)=1,\"\",IF(AND(YEAR(MinNov1+4)=TahunKalender,MONTH(MinNov1+4)=11),MinNov1+4,\"\"))","v":""},{"$f":"IF(DAY(MinNov1)=1,\"\",IF(AND(YEAR(MinNov1+5)=TahunKalender,MONTH(MinNov1+5)=11),MinNov1+5,\"\"))","v":"2019-11-01"},{"$f":"IF(DAY(MinNov1)=1,\"\",IF(AND(YEAR(MinNov1+6)=TahunKalender,MONTH(MinNov1+6)=11),MinNov1+6,\"\"))","v":"2019-11-02"},{"$f":"IF(DAY(MinNov1)=1,IF(AND(YEAR(MinNov1)=TahunKalender,MONTH(MinNov1)=11),MinNov1,\"\"),IF(AND(YEAR(MinNov1+7)=TahunKalender,MONTH(MinNov1+7)=11),MinNov1+7,\"\"))","v":"2019-11-03"},null,{"$f":"IF(DAY(MinDes1)=1,\"\",IF(AND(YEAR(MinDes1+1)=TahunKalender,MONTH(MinDes1+1)=12),MinDes1+1,\"\"))","v":""},{"$f":"IF(DAY(MinDes1)=1,\"\",IF(AND(YEAR(MinDes1+2)=TahunKalender,MONTH(MinDes1+2)=12),MinDes1+2,\"\"))","v":""},{"$f":"IF(DAY(MinDes1)=1,\"\",IF(AND(YEAR(MinDes1+3)=TahunKalender,MONTH(MinDes1+3)=12),MinDes1+3,\"\"))","v":""},{"$f":"IF(DAY(MinDes1)=1,\"\",IF(AND(YEAR(MinDes1+4)=TahunKalender,MONTH(MinDes1+4)=12),MinDes1+4,\"\"))","v":""},{"$f":"IF(DAY(MinDes1)=1,\"\",IF(AND(YEAR(MinDes1+5)=TahunKalender,MONTH(MinDes1+5)=12),MinDes1+5,\"\"))","v":""},{"$f":"IF(DAY(MinDes1)=1,\"\",IF(AND(YEAR(MinDes1+6)=TahunKalender,MONTH(MinDes1+6)=12),MinDes1+6,\"\"))","v":""},{"$f":"IF(DAY(MinDes1)=1,IF(AND(YEAR(MinDes1)=TahunKalender,MONTH(MinDes1)=12),MinDes1,\"\"),IF(AND(YEAR(MinDes1+7)=TahunKalender,MONTH(MinDes1+7)=12),MinDes1+7,\"\"))","v":"2019-12-01"}]
[null,null,{"$f":"IF(DAY(MinNov1)=1,IF(AND(YEAR(MinNov1+1)=TahunKalender,MONTH(MinNov1+1)=11),MinNov1+1,\"\"),IF(AND(YEAR(MinNov1+8)=TahunKalender,MONTH(MinNov1+8)=11),MinNov1+8,\"\"))","v":"2019-11-04"},{"$f":"IF(DAY(MinNov1)=1,IF(AND(YEAR(MinNov1+2)=TahunKalender,MONTH(MinNov1+2)=11),MinNov1+2,\"\"),IF(AND(YEAR(MinNov1+9)=TahunKalender,MONTH(MinNov1+9)=11),MinNov1+9,\"\"))","v":"2019-11-05"},{"$f":"IF(DAY(MinNov1)=1,IF(AND(YEAR(MinNov1+3)=TahunKalender,MONTH(MinNov1+3)=11),MinNov1+3,\"\"),IF(AND(YEAR(MinNov1+10)=TahunKalender,MONTH(MinNov1+10)=11),MinNov1+10,\"\"))","v":"2019-11-06"},{"$f":"IF(DAY(MinNov1)=1,IF(AND(YEAR(MinNov1+4)=TahunKalender,MONTH(MinNov1+4)=11),MinNov1+4,\"\"),IF(AND(YEAR(MinNov1+11)=TahunKalender,MONTH(MinNov1+11)=11),MinNov1+11,\"\"))","v":"2019-11-07"},{"$f":"IF(DAY(MinNov1)=1,IF(AND(YEAR(MinNov1+5)=TahunKalender,MONTH(MinNov1+5)=11),MinNov1+5,\"\"),IF(AND(YEAR(MinNov1+12)=TahunKalender,MONTH(MinNov1+12)=11),MinNov1+12,\"\"))","v":"2019-11-08"},{"$f":"IF(DAY(MinNov1)=1,IF(AND(YEAR(MinNov1+6)=TahunKalender,MONTH(MinNov1+6)=11),MinNov1+6,\"\"),IF(AND(YEAR(MinNov1+13)=TahunKalender,MONTH(MinNov1+13)=11),MinNov1+13,\"\"))","v":"2019-11-09"},{"$f":"IF(DAY(MinNov1)=1,IF(AND(YEAR(MinNov1+7)=TahunKalender,MONTH(MinNov1+7)=11),MinNov1+7,\"\"),IF(AND(YEAR(MinNov1+14)=TahunKalender,MONTH(MinNov1+14)=11),MinNov1+14,\"\"))","v":"2019-11-10"},null,{"$f":"IF(DAY(MinDes1)=1,IF(AND(YEAR(MinDes1+1)=TahunKalender,MONTH(MinDes1+1)=12),MinDes1+1,\"\"),IF(AND(YEAR(MinDes1+8)=TahunKalender,MONTH(MinDes1+8)=12),MinDes1+8,\"\"))","v":"2019-12-02"},{"$f":"IF(DAY(MinDes1)=1,IF(AND(YEAR(MinDes1+2)=TahunKalender,MONTH(MinDes1+2)=12),MinDes1+2,\"\"),IF(AND(YEAR(MinDes1+9)=TahunKalender,MONTH(MinDes1+9)=12),MinDes1+9,\"\"))","v":"2019-12-03"},{"$f":"IF(DAY(MinDes1)=1,IF(AND(YEAR(MinDes1+3)=TahunKalender,MONTH(MinDes1+3)=12),MinDes1+3,\"\"),IF(AND(YEAR(MinDes1+10)=TahunKalender,MONTH(MinDes1+10)=12),MinDes1+10,\"\"))","v":"2019-12-04"},{"$f":"IF(DAY(MinDes1)=1,IF(AND(YEAR(MinDes1+4)=TahunKalender,MONTH(MinDes1+4)=12),MinDes1+4,\"\"),IF(AND(YEAR(MinDes1+11)=TahunKalender,MONTH(MinDes1+11)=12),MinDes1+11,\"\"))","v":"2019-12-05"},{"$f":"IF(DAY(MinDes1)=1,IF(AND(YEAR(MinDes1+5)=TahunKalender,MONTH(MinDes1+5)=12),MinDes1+5,\"\"),IF(AND(YEAR(MinDes1+12)=TahunKalender,MONTH(MinDes1+12)=12),MinDes1+12,\"\"))","v":"2019-12-06"},{"$f":"IF(DAY(MinDes1)=1,IF(AND(YEAR(MinDes1+6)=TahunKalender,MONTH(MinDes1+6)=12),MinDes1+6,\"\"),IF(AND(YEAR(MinDes1+13)=TahunKalender,MONTH(MinDes1+13)=12),MinDes1+13,\"\"))","v":"2019-12-07"},{"$f":"IF(DAY(MinDes1)=1,IF(AND(YEAR(MinDes1+7)=TahunKalender,MONTH(MinDes1+7)=12),MinDes1+7,\"\"),IF(AND(YEAR(MinDes1+14)=TahunKalender,MONTH(MinDes1+14)=12),MinDes1+14,\"\"))","v":"2019-12-08"}]
[null,null,{"$f":"IF(DAY(MinNov1)=1,IF(AND(YEAR(MinNov1+8)=TahunKalender,MONTH(MinNov1+8)=11),MinNov1+8,\"\"),IF(AND(YEAR(MinNov1+15)=TahunKalender,MONTH(MinNov1+15)=11),MinNov1+15,\"\"))","v":"2019-11-11"},{"$f":"IF(DAY(MinNov1)=1,IF(AND(YEAR(MinNov1+9)=TahunKalender,MONTH(MinNov1+9)=11),MinNov1+9,\"\"),IF(AND(YEAR(MinNov1+16)=TahunKalender,MONTH(MinNov1+16)=11),MinNov1+16,\"\"))","v":"2019-11-12"},{"$f":"IF(DAY(MinNov1)=1,IF(AND(YEAR(MinNov1+10)=TahunKalender,MONTH(MinNov1+10)=11),MinNov1+10,\"\"),IF(AND(YEAR(MinNov1+17)=TahunKalender,MONTH(MinNov1+17)=11),MinNov1+17,\"\"))","v":"2019-11-13"},{"$f":"IF(DAY(MinNov1)=1,IF(AND(YEAR(MinNov1+11)=TahunKalender,MONTH(MinNov1+11)=11),MinNov1+11,\"\"),IF(AND(YEAR(MinNov1+18)=TahunKalender,MONTH(MinNov1+18)=11),MinNov1+18,\"\"))","v":"2019-11-14"},{"$f":"IF(DAY(MinNov1)=1,IF(AND(YEAR(MinNov1+12)=TahunKalender,MONTH(MinNov1+12)=11),MinNov1+12,\"\"),IF(AND(YEAR(MinNov1+19)=TahunKalender,MONTH(MinNov1+19)=11),MinNov1+19,\"\"))","v":"2019-11-15"},{"$f":"IF(DAY(MinNov1)=1,IF(AND(YEAR(MinNov1+13)=TahunKalender,MONTH(MinNov1+13)=11),MinNov1+13,\"\"),IF(AND(YEAR(MinNov1+20)=TahunKalender,MONTH(MinNov1+20)=11),MinNov1+20,\"\"))","v":"2019-11-16"},{"$f":"IF(DAY(MinNov1)=1,IF(AND(YEAR(MinNov1+14)=TahunKalender,MONTH(MinNov1+14)=11),MinNov1+14,\"\"),IF(AND(YEAR(MinNov1+21)=TahunKalender,MONTH(MinNov1+21)=11),MinNov1+21,\"\"))","v":"2019-11-17"},null,{"$f":"IF(DAY(MinDes1)=1,IF(AND(YEAR(MinDes1+8)=TahunKalender,MONTH(MinDes1+8)=12),MinDes1+8,\"\"),IF(AND(YEAR(MinDes1+15)=TahunKalender,MONTH(MinDes1+15)=12),MinDes1+15,\"\"))","v":"2019-12-09"},{"$f":"IF(DAY(MinDes1)=1,IF(AND(YEAR(MinDes1+9)=TahunKalender,MONTH(MinDes1+9)=12),MinDes1+9,\"\"),IF(AND(YEAR(MinDes1+16)=TahunKalender,MONTH(MinDes1+16)=12),MinDes1+16,\"\"))","v":"2019-12-10"},{"$f":"IF(DAY(MinDes1)=1,IF(AND(YEAR(MinDes1+10)=TahunKalender,MONTH(MinDes1+10)=12),MinDes1+10,\"\"),IF(AND(YEAR(MinDes1+17)=TahunKalender,MONTH(MinDes1+17)=12),MinDes1+17,\"\"))","v":"2019-12-11"},{"$f":"IF(DAY(MinDes1)=1,IF(AND(YEAR(MinDes1+11)=TahunKalender,MONTH(MinDes1+11)=12),MinDes1+11,\"\"),IF(AND(YEAR(MinDes1+18)=TahunKalender,MONTH(MinDes1+18)=12),MinDes1+18,\"\"))","v":"2019-12-12"},{"$f":"IF(DAY(MinDes1)=1,IF(AND(YEAR(MinDes1+12)=TahunKalender,MONTH(MinDes1+12)=12),MinDes1+12,\"\"),IF(AND(YEAR(MinDes1+19)=TahunKalender,MONTH(MinDes1+19)=12),MinDes1+19,\"\"))","v":"2019-12-13"},{"$f":"IF(DAY(MinDes1)=1,IF(AND(YEAR(MinDes1+13)=TahunKalender,MONTH(MinDes1+13)=12),MinDes1+13,\"\"),IF(AND(YEAR(MinDes1+20)=TahunKalender,MONTH(MinDes1+20)=12),MinDes1+20,\"\"))","v":"2019-12-14"},{"$f":"IF(DAY(MinDes1)=1,IF(AND(YEAR(MinDes1+14)=TahunKalender,MONTH(MinDes1+14)=12),MinDes1+14,\"\"),IF(AND(YEAR(MinDes1+21)=TahunKalender,MONTH(MinDes1+21)=12),MinDes1+21,\"\"))","v":"2019-12-15"}]
[null,null,{"$f":"IF(DAY(MinNov1)=1,IF(AND(YEAR(MinNov1+15)=TahunKalender,MONTH(MinNov1+15)=11),MinNov1+15,\"\"),IF(AND(YEAR(MinNov1+22)=TahunKalender,MONTH(MinNov1+22)=11),MinNov1+22,\"\"))","v":"2019-11-18"},{"$f":"IF(DAY(MinNov1)=1,IF(AND(YEAR(MinNov1+16)=TahunKalender,MONTH(MinNov1+16)=11),MinNov1+16,\"\"),IF(AND(YEAR(MinNov1+23)=TahunKalender,MONTH(MinNov1+23)=11),MinNov1+23,\"\"))","v":"2019-11-19"},{"$f":"IF(DAY(MinNov1)=1,IF(AND(YEAR(MinNov1+17)=TahunKalender,MONTH(MinNov1+17)=11),MinNov1+17,\"\"),IF(AND(YEAR(MinNov1+24)=TahunKalender,MONTH(MinNov1+24)=11),MinNov1+24,\"\"))","v":"2019-11-20"},{"$f":"IF(DAY(MinNov1)=1,IF(AND(YEAR(MinNov1+18)=TahunKalender,MONTH(MinNov1+18)=11),MinNov1+18,\"\"),IF(AND(YEAR(MinNov1+25)=TahunKalender,MONTH(MinNov1+25)=11),MinNov1+25,\"\"))","v":"2019-11-21"},{"$f":"IF(DAY(MinNov1)=1,IF(AND(YEAR(MinNov1+19)=TahunKalender,MONTH(MinNov1+19)=11),MinNov1+19,\"\"),IF(AND(YEAR(MinNov1+26)=TahunKalender,MONTH(MinNov1+26)=11),MinNov1+26,\"\"))","v":"2019-11-22"},{"$f":"IF(DAY(MinNov1)=1,IF(AND(YEAR(MinNov1+20)=TahunKalender,MONTH(MinNov1+20)=11),MinNov1+20,\"\"),IF(AND(YEAR(MinNov1+27)=TahunKalender,MONTH(MinNov1+27)=11),MinNov1+27,\"\"))","v":"2019-11-23"},{"$f":"IF(DAY(MinNov1)=1,IF(AND(YEAR(MinNov1+21)=TahunKalender,MONTH(MinNov1+21)=11),MinNov1+21,\"\"),IF(AND(YEAR(MinNov1+28)=TahunKalender,MONTH(MinNov1+28)=11),MinNov1+28,\"\"))","v":"2019-11-24"},null,{"$f":"IF(DAY(MinDes1)=1,IF(AND(YEAR(MinDes1+15)=TahunKalender,MONTH(MinDes1+15)=12),MinDes1+15,\"\"),IF(AND(YEAR(MinDes1+22)=TahunKalender,MONTH(MinDes1+22)=12),MinDes1+22,\"\"))","v":"2019-12-16"},{"$f":"IF(DAY(MinDes1)=1,IF(AND(YEAR(MinDes1+16)=TahunKalender,MONTH(MinDes1+16)=12),MinDes1+16,\"\"),IF(AND(YEAR(MinDes1+23)=TahunKalender,MONTH(MinDes1+23)=12),MinDes1+23,\"\"))","v":"2019-12-17"},{"$f":"IF(DAY(MinDes1)=1,IF(AND(YEAR(MinDes1+17)=TahunKalender,MONTH(MinDes1+17)=12),MinDes1+17,\"\"),IF(AND(YEAR(MinDes1+24)=TahunKalender,MONTH(MinDes1+24)=12),MinDes1+24,\"\"))","v":"2019-12-18"},{"$f":"IF(DAY(MinDes1)=1,IF(AND(YEAR(MinDes1+18)=TahunKalender,MONTH(MinDes1+18)=12),MinDes1+18,\"\"),IF(AND(YEAR(MinDes1+25)=TahunKalender,MONTH(MinDes1+25)=12),MinDes1+25,\"\"))","v":"2019-12-19"},{"$f":"IF(DAY(MinDes1)=1,IF(AND(YEAR(MinDes1+19)=TahunKalender,MONTH(MinDes1+19)=12),MinDes1+19,\"\"),IF(AND(YEAR(MinDes1+26)=TahunKalender,MONTH(MinDes1+26)=12),MinDes1+26,\"\"))","v":"2019-12-20"},{"$f":"IF(DAY(MinDes1)=1,IF(AND(YEAR(MinDes1+20)=TahunKalender,MONTH(MinDes1+20)=12),MinDes1+20,\"\"),IF(AND(YEAR(MinDes1+27)=TahunKalender,MONTH(MinDes1+27)=12),MinDes1+27,\"\"))","v":"2019-12-21"},{"$f":"IF(DAY(MinDes1)=1,IF(AND(YEAR(MinDes1+21)=TahunKalender,MONTH(MinDes1+21)=12),MinDes1+21,\"\"),IF(AND(YEAR(MinDes1+28)=TahunKalender,MONTH(MinDes1+28)=12),MinDes1+28,\"\"))","v":"2019-12-22"}]
[null,null,{"$f":"IF(DAY(MinNov1)=1,IF(AND(YEAR(MinNov1+22)=TahunKalender,MONTH(MinNov1+22)=11),MinNov1+22,\"\"),IF(AND(YEAR(MinNov1+29)=TahunKalender,MONTH(MinNov1+29)=11),MinNov1+29,\"\"))","v":"2019-11-25"},{"$f":"IF(DAY(MinNov1)=1,IF(AND(YEAR(MinNov1+23)=TahunKalender,MONTH(MinNov1+23)=11),MinNov1+23,\"\"),IF(AND(YEAR(MinNov1+30)=TahunKalender,MONTH(MinNov1+30)=11),MinNov1+30,\"\"))","v":"2019-11-26"},{"$f":"IF(DAY(MinNov1)=1,IF(AND(YEAR(MinNov1+24)=TahunKalender,MONTH(MinNov1+24)=11),MinNov1+24,\"\"),IF(AND(YEAR(MinNov1+31)=TahunKalender,MONTH(MinNov1+31)=11),MinNov1+31,\"\"))","v":"2019-11-27"},{"$f":"IF(DAY(MinNov1)=1,IF(AND(YEAR(MinNov1+25)=TahunKalender,MONTH(MinNov1+25)=11),MinNov1+25,\"\"),IF(AND(YEAR(MinNov1+32)=TahunKalender,MONTH(MinNov1+32)=11),MinNov1+32,\"\"))","v":"2019-11-28"},{"$f":"IF(DAY(MinNov1)=1,IF(AND(YEAR(MinNov1+26)=TahunKalender,MONTH(MinNov1+26)=11),MinNov1+26,\"\"),IF(AND(YEAR(MinNov1+33)=TahunKalender,MONTH(MinNov1+33)=11),MinNov1+33,\"\"))","v":"2019-11-29"},{"$f":"IF(DAY(MinNov1)=1,IF(AND(YEAR(MinNov1+27)=TahunKalender,MONTH(MinNov1+27)=11),MinNov1+27,\"\"),IF(AND(YEAR(MinNov1+34)=TahunKalender,MONTH(MinNov1+34)=11),MinNov1+34,\"\"))","v":"2019-11-30"},{"$f":"IF(DAY(MinNov1)=1,IF(AND(YEAR(MinNov1+28)=TahunKalender,MONTH(MinNov1+28)=11),MinNov1+28,\"\"),IF(AND(YEAR(MinNov1+35)=TahunKalender,MONTH(MinNov1+35)=11),MinNov1+35,\"\"))","v":""},null,{"$f":"IF(DAY(MinDes1)=1,IF(AND(YEAR(MinDes1+22)=TahunKalender,MONTH(MinDes1+22)=12),MinDes1+22,\"\"),IF(AND(YEAR(MinDes1+29)=TahunKalender,MONTH(MinDes1+29)=12),MinDes1+29,\"\"))","v":"2019-12-23"},{"$f":"IF(DAY(MinDes1)=1,IF(AND(YEAR(MinDes1+23)=TahunKalender,MONTH(MinDes1+23)=12),MinDes1+23,\"\"),IF(AND(YEAR(MinDes1+30)=TahunKalender,MONTH(MinDes1+30)=12),MinDes1+30,\"\"))","v":"2019-12-24"},{"$f":"IF(DAY(MinDes1)=1,IF(AND(YEAR(MinDes1+24)=TahunKalender,MONTH(MinDes1+24)=12),MinDes1+24,\"\"),IF(AND(YEAR(MinDes1+31)=TahunKalender,MONTH(MinDes1+31)=12),MinDes1+31,\"\"))","v":"2019-12-25"},{"$f":"IF(DAY(MinDes1)=1,IF(AND(YEAR(MinDes1+25)=TahunKalender,MONTH(MinDes1+25)=12),MinDes1+25,\"\"),IF(AND(YEAR(MinDes1+32)=TahunKalender,MONTH(MinDes1+32)=12),MinDes1+32,\"\"))","v":"2019-12-26"},{"$f":"IF(DAY(MinDes1)=1,IF(AND(YEAR(MinDes1+26)=TahunKalender,MONTH(MinDes1+26)=12),MinDes1+26,\"\"),IF(AND(YEAR(MinDes1+33)=TahunKalender,MONTH(MinDes1+33)=12),MinDes1+33,\"\"))","v":"2019-12-27"},{"$f":"IF(DAY(MinDes1)=1,IF(AND(YEAR(MinDes1+27)=TahunKalender,MONTH(MinDes1+27)=12),MinDes1+27,\"\"),IF(AND(YEAR(MinDes1+34)=TahunKalender,MONTH(MinDes1+34)=12),MinDes1+34,\"\"))","v":"2019-12-28"},{"$f":"IF(DAY(MinDes1)=1,IF(AND(YEAR(MinDes1+28)=TahunKalender,MONTH(MinDes1+28)=12),MinDes1+28,\"\"),IF(AND(YEAR(MinDes1+35)=TahunKalender,MONTH(MinDes1+35)=12),MinDes1+35,\"\"))","v":"2019-12-29"}]
[null,null,{"$f":"IF(DAY(MinNov1)=1,IF(AND(YEAR(MinNov1+29)=TahunKalender,MONTH(MinNov1+29)=11),MinNov1+29,\"\"),IF(AND(YEAR(MinNov1+36)=TahunKalender,MONTH(MinNov1+36)=11),MinNov1+36,\"\"))","v":""},{"$f":"IF(DAY(MinNov1)=1,IF(AND(YEAR(MinNov1+30)=TahunKalender,MONTH(MinNov1+30)=11),MinNov1+30,\"\"),IF(AND(YEAR(MinNov1+37)=TahunKalender,MONTH(MinNov1+37)=11),MinNov1+37,\"\"))","v":""},{"$f":"IF(DAY(MinNov1)=1,IF(AND(YEAR(MinNov1+31)=TahunKalender,MONTH(MinNov1+31)=11),MinNov1+31,\"\"),IF(AND(YEAR(MinNov1+38)=TahunKalender,MONTH(MinNov1+38)=11),MinNov1+38,\"\"))","v":""},{"$f":"IF(DAY(MinNov1)=1,IF(AND(YEAR(MinNov1+32)=TahunKalender,MONTH(MinNov1+32)=11),MinNov1+32,\"\"),IF(AND(YEAR(MinNov1+39)=TahunKalender,MONTH(MinNov1+39)=11),MinNov1+39,\"\"))","v":""},{"$f":"IF(DAY(MinNov1)=1,IF(AND(YEAR(MinNov1+33)=TahunKalender,MONTH(MinNov1+33)=11),MinNov1+33,\"\"),IF(AND(YEAR(MinNov1+40)=TahunKalender,MONTH(MinNov1+40)=11),MinNov1+40,\"\"))","v":""},{"$f":"IF(DAY(MinNov1)=1,IF(AND(YEAR(MinNov1+34)=TahunKalender,MONTH(MinNov1+34)=11),MinNov1+34,\"\"),IF(AND(YEAR(MinNov1+41)=TahunKalender,MONTH(MinNov1+41)=11),MinNov1+41,\"\"))","v":""},{"$f":"IF(DAY(MinNov1)=1,IF(AND(YEAR(MinNov1+35)=TahunKalender,MONTH(MinNov1+35)=11),MinNov1+35,\"\"),IF(AND(YEAR(MinNov1+42)=TahunKalender,MONTH(MinNov1+42)=11),MinNov1+42,\"\"))","v":""},null,{"$f":"IF(DAY(MinDes1)=1,IF(AND(YEAR(MinDes1+29)=TahunKalender,MONTH(MinDes1+29)=12),MinDes1+29,\"\"),IF(AND(YEAR(MinDes1+36)=TahunKalender,MONTH(MinDes1+36)=12),MinDes1+36,\"\"))","v":"2019-12-30"},{"$f":"IF(DAY(MinDes1)=1,IF(AND(YEAR(MinDes1+30)=TahunKalender,MONTH(MinDes1+30)=12),MinDes1+30,\"\"),IF(AND(YEAR(MinDes1+37)=TahunKalender,MONTH(MinDes1+37)=12),MinDes1+37,\"\"))","v":"2019-12-31"},{"$f":"IF(DAY(MinDes1)=1,IF(AND(YEAR(MinDes1+31)=TahunKalender,MONTH(MinDes1+31)=12),MinDes1+31,\"\"),IF(AND(YEAR(MinDes1+38)=TahunKalender,MONTH(MinDes1+38)=12),MinDes1+38,\"\"))","v":""},{"$f":"IF(DAY(MinDes1)=1,IF(AND(YEAR(MinDes1+32)=TahunKalender,MONTH(MinDes1+32)=12),MinDes1+32,\"\"),IF(AND(YEAR(MinDes1+39)=TahunKalender,MONTH(MinDes1+39)=12),MinDes1+39,\"\"))","v":""},{"$f":"IF(DAY(MinDes1)=1,IF(AND(YEAR(MinDes1+33)=TahunKalender,MONTH(MinDes1+33)=12),MinDes1+33,\"\"),IF(AND(YEAR(MinDes1+40)=TahunKalender,MONTH(MinDes1+40)=12),MinDes1+40,\"\"))","v":""},{"$f":"IF(DAY(MinDes1)=1,IF(AND(YEAR(MinDes1+34)=TahunKalender,MONTH(MinDes1+34)=12),MinDes1+34,\"\"),IF(AND(YEAR(MinDes1+41)=TahunKalender,MONTH(MinDes1+41)=12),MinDes1+41,\"\"))","v":""},{"$f":"IF(DAY(MinDes1)=1,IF(AND(YEAR(MinDes1+35)=TahunKalender,MONTH(MinDes1+35)=12),MinDes1+35,\"\"),IF(AND(YEAR(MinDes1+42)=TahunKalender,MONTH(MinDes1+42)=12),MinDes1+42,\"\"))","v":""}]